Cogmind - Beta 16.1 @@@ ROGUE MODE // 2026.02.22 @ 01:45:24 Player: AlmondRoll Result: Destroyed by Decapitator with Experimental Terror Saw Performance ------------- Evolutions (8) 4000 Regions Visited (28) 5600 Robots Destroyed (129) 645 Value Destroyed (2919) 2919 Prototype IDs (86) 1720 Alien Tech Used (11) 2200 Bonus (4630) 4630 TOTAL SCORE: 21714 Bonus ------- Follower Combat Kills 1130 Hunted by Unchained 500 Network Hubs Disabled 400 Registered with UFD 300 Met Optimus in HQ 500 Met Zhirov 300 Met Warlord at Base 500 MAIN.C Attacked Warlord 500 Scanned by Researcher 500 Cogmind --------- Core Integrity 0/1450 Matter 225/300 Energy 100/100 System Corruption 8% Temperature Cool (0) Movement Core (50) Location -2/Protoforge Parts ------- > --- POWER (2) -------- (None) > --- PROPULSION (7) --- (None) > --- UTILITY (13) ----- Advanced Signal Interpreter Graphene Brace > --- WEAPON (2) ------- (None) > --- INVENTORY (5) ---- Triangulator Jamming Amplifier ECM Suite Dimensional Node Initializer Peak State ------------ > --- POWER ------------ Backup Power VII Backup Power VII > --- PROPULSION ------- Biomechanical Wings Biomechanical Wings Cooled Nuclear Pulse Thruster Cooled Nuclear Pulse Thruster Cooled Nuclear Pulse Thruster Improved Diametric Drive Improved Diametric Drive > --- UTILITY ---------- Medium Storage Unit Advanced Gravity Neutralizer Advanced Sensor Array Advanced Signal Interpreter Advanced Reaction Control System Advanced Phase Shifter Experimental Propulsion Shielding Enhanced Scrap Shield Phase Redirector Advanced Hacking Suite Advanced System Shield Advanced System Shield > --- WEAPON ----------- Sigix Broadsword > --- INVENTORY -------- Light Quantum Reactor Improved Quantum Reactor Biomechanical Wings Advanced Energy Well Triangulator Stasis Canceller Jamming Amplifier Graphene Brace Supercharged TR Vibroblade [Rating: 185] Favorites ----------- Power Backup Power VII Engine Subdweller Power Source Power Core Backup Power VII Reactor Improved Quantum Reactor Propulsion Biomechanical Wings Treads Light Treads Leg Aluminum Leg Wheel Compact Wheel Flight Unit Biomechanical Wings Utility Medium Storage Unit Device Advanced Sensor Array Storage Medium Storage Unit Processor Advanced Signal Interpreter Hackware Advanced System Shield Protection Experimental Propulsion Shielding Artifact Phase Armor Weapon Barrage Gun Energy Gun Small Laser Energy Cannon Neutron Cannon Ballistic Gun Barrage Gun Ballistic Cannon Light Cannon Launcher Long-range Missile Launcher Special Weapon Multitool Impact Weapon Shock Maul Slashing Weapon Power Sword Piercing Weapon Heavy Pick Build | -11 -10 -10 -10 -8 -8 -6 -6 -6 -6 -6 -6 -6 -5 -5 -5 -5 -5 -5 -4 -4 -4 -4 -4 -3 -3 -2 -2 -2 ------- Run | Yrd Mat Min Sub Rec Scr Fac Was Fac Ext Cet Arc Hub Fac Was Fac Upp Upp War Pro Fac Upp Upp Zhi Pro Res Res Qua Frg Slots Evolved 16 | . . . . . . 8 . . . . . . 2 . . . . . . 2 . . . . 2 2 . . Power . | . . . . . . . . . . . . . . . . . . . . . . . . . . . . . Propulsion 5 | . . . . . . 3 . . . . . . 1 . . . . . . 1 . . . . . . . . Utility 11 | . . . . . . 5 . . . . . . 1 . . . . . . 1 . . . . 2 2 . . Weapon . | . . . . . . . . . . . . . . . . . . . . . . . . . . . . . Parts Attached 208 | 3 9 8 17 2 1 38 1 12 9 4 . 4 28 1 6 5 1 17 . 7 2 . 5 2 10 . 6 10 Power 23 | . 1 2 1 . . 1 . 2 . 1 . . 2 . 1 2 1 6 . 1 . . . . . . 2 . Engine 5 | . . 1 1 . . . . . . . . . . . . 2 1 . . . . . . . . . . . Core 11 | . 1 1 . . . 1 . 2 . . . . 1 . 1 . . 3 . . . . . . . . 1 . Reactor 7 | . . . . . . . . . . 1 . . 1 . . . . 3 . 1 . . . . . . 1 . Propulsion 44 | 2 1 2 5 2 1 14 . . 1 . . . 10 . . . . 2 . 1 . . 3 . . . . . Treads 6 | 2 1 1 2 . . . . . . . . . . . . . . . . . . . . . . . . . Leg . | . . . . . . . . . . . . . . . . . . . . . . . . . . . . . Wheel 7 | . . 1 3 2 1 . . . . . . . . . . . . . . . . . . . . . . . Hover . | . . . . . . . . . . . . . . . . . . . . . . . . . . . . . Flight 31 | . . . . . . 14 . . 1 . . . 10 . . . . 2 . 1 . . 3 . . . . . Utility 106 | 1 3 2 3 . . 19 1 7 5 3 . 4 12 1 4 3 . 6 . 5 2 . 2 1 9 . 3 10 Device 50 | 1 . 2 . . . 8 1 3 2 1 . 1 6 1 2 1 . 6 . 3 2 . 1 1 4 . 1 3 Storage 15 | . 2 . 1 . . 2 . 2 1 . . 1 2 . . . . . . 1 . . . . 3 . . . Processor 6 | . . . . . . 2 . . . . . . 1 . 1 . . . . 1 . . . . . . . 1 Hackware 10 | . . . . . . 4 . 2 . . . 1 2 . . . . . . . . . . . 1 . . . Protection 23 | . 1 . 2 . . 3 . . 2 2 . 1 1 . 1 2 . . . . . . 1 . 1 . . 6 Artifact 2 | . . . . . . . . . . . . . . . . . . . . . . . . . . . 2 . Weapon 35 | . 4 2 8 . . 4 . 3 3 . . . 4 . 1 . . 3 . . . . . 1 1 . 1 . Energy Gun 1 | . . . . . . . . . . . . . . . . . . 1 . . . . . . . . . . Energy Cannon 1 | . . . . . . . . . . . . . . . . . . 1 . . . . . . . . . . Ballistic Gun 7 | . 2 . 3 . . . . . 2 . . . . . . . . . . . . . . . . . . . Ballistic Cannon 8 | . 2 2 4 . . . . . . . . . . . . . . . . . . . . . . . . . Launcher 4 | . . . . . . 1 . . 1 . . . . . 1 . . 1 . . . . . . . . . . Special Weapon 3 | . . . 1 . . 1 . . . . . . 1 . . . . . . . . . . . . . . . Impact Weapon 2 | . . . . . . . . . . . . . 2 . . . . . . . . . . . . . . . Slashing Weapon 6 | . . . . . . 2 . 2 . . . . . . . . . . . . . . . . 1 . 1 . Piercing Weapon 3 | . . . . . . . . 1 . . . . 1 . . . . . . . . . . 1 . . . . Special Melee Weapon . | . . . . . . . . . . . . . . . . . . . . . . . . . . . . . Unidentified Prototypes 50 | . . 1 . . . 2 . . . 3 . 1 6 1 . 2 . 11 . 1 . . 3 . 3 . 7 9 Corrupted Parts 1 | . . . . . . 1 . . . . . . . . . . . . . . . . . . . . . . System Corruption 1 | . . . . . . 1 . . . . . . . . . . . . . . . . . . . . . . Parts Lost 57 | . . 5 5 . . 1 . 1 5 . 1 3 2 . 5 . . . . . . . . . . . . 29 Power 8 | . . 1 1 . . . . . 1 . . 1 . . 1 . . . . . . . . . . . . 3 Propulsion 15 | . . 2 1 . . . . . . . 1 1 1 . 1 . . . . . . . . . . . . 8 Utility 23 | . . . 1 . . 1 . . 3 . . 1 . . 1 . . . . . . . . . . . . 16 Weapon 11 | . . 2 2 . . . . 1 1 . . . 1 . 2 . . . . . . . . . . . . 2 Highest Loss Streak 27 | . . 2 3 . . 1 . 1 4 . 1 3 1 . 4 . . . . . . . . . . . . 27 To Critical Strikes 2 | . . . . . . . . . . . . . . . 1 . . . . . . . . . . . . 1 Average Backups 15 | 5 10 18 19 29 32 8 9 9 9 9 10 9 9 10 9 9 9 10 10 9 9 10 9 10 9 8 9 8 Power . | 1 . . 1 2 1 . 1 1 . . 1 1 . 1 . 1 1 1 1 1 1 1 . . . 1 1 . Propulsion 3 | 2 4 4 4 6 7 1 2 2 2 1 1 . . 2 1 2 2 2 2 . . . . 1 1 1 1 . Utility 7 | . 3 6 7 11 13 4 5 5 6 7 7 7 7 6 7 5 6 6 7 7 8 9 9 8 7 5 5 4 Weapon 3 | 1 2 6 6 8 9 1 1 1 1 1 1 1 1 1 . . . . . . . . . . . . . . Tool/Special . | . . . . . . . . . . . . . . . . . . . . . . . . . . . . . Unused Backups 42 | . 10 2 3 . 1 12 1 1 2 . 1 . 2 . 1 . . . . 3 . . . . . . 1 2 Power 5 | . 2 . . . 1 . . . . . . . 1 . . . . . . 1 . . . . . . . . Propulsion 7 | . 3 . . . . 3 . . . . . . . . . . . . . 1 . . . . . . . . Utility 14 | . 2 . . . . 4 1 1 2 . 1 . 1 . 1 . . . . . . . . . . . . 1 Weapon 14 | . 3 2 3 . . 5 . . . . . . . . . . . . . 1 . . . . . . . . Tool/Special 2 | . . . . . . . . . . . . . . . . . . . . . . . . . . . 1 1 Average Slot Usage (%) 91 | . 99 99 92 85 85 97 100 96 90 93 93 88 96 100 94 83 87 85 88 87 90 90 89 92 90 89 90 79 Engine 5 | . 5 6 9 14 14 . . . . . . . . . . 4 10 3 . 4 6 8 5 5 . . . . Core 3 | . 8 7 . . . 5 6 6 6 3 . 5 1 5 2 . . 2 5 3 . . . . 8 4 7 5 Reactor 1 | . . . . . . . . . . 2 6 . 3 . 1 . . 2 5 . 3 1 4 5 . 3 . . Treads 6 | . 27 25 20 . . . . . . . . . . . . . . . . . . . . . . . . . Wheel 5 | . . 2 7 28 28 . . . . . . . . . . . . . . . . . . . . . . . Flight 18 | . . . . . . 31 33 32 33 33 33 33 33 35 34 34 33 33 33 35 35 35 35 35 31 29 29 24 Device 7 | . 7 5 . . . 12 13 8 9 17 20 13 10 5 6 10 15 10 12 10 10 10 9 10 12 18 19 15 Storage 8 | . 14 14 14 14 14 4 6 6 6 8 6 6 5 11 5 5 5 5 5 5 5 5 5 5 4 4 4 6 Processor 2 | . . . . . . 5 6 6 6 6 6 6 4 . 4 . . . . 4 5 5 5 5 4 4 4 4 Hackware 7 | . . . . . . 13 20 15 9 6 6 12 16 17 17 11 11 11 11 10 10 10 10 10 12 12 12 10 Protection 7 | . 6 7 10 . . 6 . 8 9 6 6 6 6 11 8 11 5 10 9 10 10 10 10 9 8 8 8 8 Ballistic Gun 5 | . 4 . 9 19 28 . . . 1 . . . . . . . . . . . . . . . . . . . Ballistic Cannon 5 | . 22 28 13 8 . . . . . . . . . . . . . . . . . . . . . . . . Special Weapon 1 | . . . 5 . . 5 6 3 . . . . . . . . . . . . . . . . . . . . Impact Weapon 1 | . . . . . . . . . . . . . 4 5 5 2 5 4 5 5 5 5 5 4 1 . . . Peak Build Rating 185 | 7 12 16 19 21 22 70 67 71 74 85 82 80 105 105 104 96 98 117 108 124 119 119 131 131 147 159 185 179 Average Rating 63 | 6 10 11 15 18 20 60 66 66 65 78 80 71 92 104 87 89 97 104 108 114 115 115 130 128 139 154 171 151 On Entrance 80 | 6 7 12 13 17 20 21 64 67 64 72 81 76 59 104 104 85 92 98 108 108 108 116 119 127 131 142 154 173 Avg Prop Armor Cover (%) 7 | . . 11 10 . . 4 . . . 2 3 2 . . 3 . . . . . . . . . . . . . Naked Turns . | . . . . . . . . . . . . . . . . . . . . . . . . . . . . . Heaviest Build 211 | 12 56 56 211 211 211 26 22 26 32 31 31 29 35 35 38 41 44 65 53 55 48 47 57 57 58 59 59 54 Greatest Support 69 | 40 40 40 40 40 32 34 34 34 34 44 48 42 47 42 42 36 52 54 54 60 54 54 60 69 60 69 69 69 Greatest Overweight (x) 18 | . 18 3 5 6 8 . . . 1 1 . . . . 1 1 1 3 . . . . 1 1 . . 1 . Average Overweight (x) . | . . 1 2 5 6 . . . . . . . . . . . . . . . . . . . . . . . Largest Inventory Capacity 35 | 8 20 20 35 35 35 35 10 10 10 10 10 10 10 10 10 10 10 10 10 10 10 10 10 10 25 10 10 10 Average Capacity 16 | 8 14 20 23 35 35 8 10 10 10 10 10 10 10 10 10 10 10 10 10 10 10 10 10 10 10 10 10 9 Most Carried 35 | 6 16 20 28 34 35 34 10 10 10 10 10 10 10 10 10 10 10 10 10 10 10 10 10 10 10 10 10 10 Average Carried 15 | 4 10 18 20 31 34 8 9 9 9 9 9 9 9 10 9 9 9 9 10 9 9 10 9 10 9 8 9 8 Final Capacity 35 | 8 20 20 35 35 35 10 10 10 10 10 10 10 10 10 10 10 10 10 10 10 10 10 10 10 10 10 10 5 Final Carried 35 | 6 16 19 28 34 35 10 10 10 10 10 10 10 10 10 10 9 10 10 10 9 10 10 10 10 10 9 10 4 Class Distribution -------------------- 39% | Hacker-Sprinter 22% | Mutant 18% | Hauler-Mutant 11% | Hacker-Mutant Dominant Class ---------------- Mutant | -10/Materials Mutant | -10/Mines Mutant | -10/Subcaves Hauler-Mutant | -8/Recycling Hauler-Mutant | -8/Scraptown Hacker-Sprinter | -6/Factory Hacker-Sprinter | -6/Waste Hacker-Sprinter | -6/Factory Machinist-Sprinter | -6/Extension Machinist-Mutant | -6/Cetus Machinist-Mutant | -6/Archives Hacker-Mutant | -6/Hub_04(d) Hacker-Sprinter | -5/Factory Hacker-Sprinter | -5/Waste Hacker-Sprinter | -5/Factory Hacker-Sprinter | -5/Upper Caves Hacker-Sprinter | -5/Upper Caves Hacker-Sprinter | -5/Warlord Hacker-Sprinter | -4/Proximity Caves Hacker-Sprinter | -4/Factory Hacker-Sprinter | -4/Upper Caves Hacker-Sprinter | -4/Upper Caves Hacker-Mutant | -4/Zhirov Hacker-Sprinter | -3/Proximity Caves Hacker-Sprinter | -3/Research Hacker-Sprinter | -2/Research Hacker-Sprinter | -2/Quarantine Hacker-Sprinter | -2/Protoforge Resources | -11 -10 -10 -10 -8 -8 -6 -6 -6 -6 -6 -6 -6 -5 -5 -5 -5 -5 -5 -4 -4 -4 -4 -4 -3 -3 -2 -2 -2 ----------- Run | Yrd Mat Min Sub Rec Scr Fac Was Fac Ext Cet Arc Hub Fac Was Fac Upp Upp War Pro Fac Upp Upp Zhi Pro Res Res Qua Frg Matter Collected 7135 | 245 540 636 743 66 12 579 . 823 379 137 . 149 606 . 331 179 20 347 . 60 310 40 . 175 379 156 188 35 Remotely . | . . . . . . . . . . . . . . . . . . . . . . . . . . . . . Salvage Created 7326 | 93 905 538 206 89 . 752 . 1022 342 . . 341 445 . 318 . . . . 52 956 425 . 18 396 113 315 . Parts 249 | 6 47 36 19 4 . 24 . 42 26 . . 9 10 . 6 . . . . . 2 . . . 8 2 8 . Haulers Intercepted 15 | . 2 . . . . 3 . 3 . . . 2 4 . . . . . . . . . . . . 1 . . Recyclers Shooed 14 | 1 4 2 . 1 . 1 . . 3 . . . . . 1 . . . . . . . . . . . 1 . Parts Field Recycled . | . . . . . . . . . . . . . . . . . . . . . . . . . . . . . Retrieved Matter . | . . . . . . . . . . . . . . . . . . . . . . . . . . . . . Parts Self-Destructed 15 | . . . 15 . . . . . . . . . . . . . . . . . . . . . . . . . Prevented . | . . . . . . . . . . . . . . . . . . . . . . . . . . . . . Parts Restored 1 | . . . . . . . . . . . . . . . . . . . . . 1 . . . . . . . Broken 1 | . . . . . . . . . . . . . . . . . . . . . 1 . . . . . . . Kills | -11 -10 -10 -10 -8 -8 -6 -6 -6 -6 -6 -6 -6 -5 -5 -5 -5 -5 -5 -4 -4 -4 -4 -4 -3 -3 -2 -2 -2 ------- Run | Yrd Mat Min Sub Rec Scr Fac Was Fac Ext Cet Arc Hub Fac Was Fac Upp Upp War Pro Fac Upp Upp Zhi Pro Res Res Qua Frg Combat Hostiles Destroyed 49 | . 9 19 12 . . 4 . . 1 . . . . . 4 . . . . . . . . . . . . . Melee 1 | . . . . . . . . . . . . . . . 1 . . . . . . . . . . . . . Guns 8 | . 1 . 6 . . . . . 1 . . . . . . . . . . . . . . . . . . . Cannons 33 | . 8 19 6 . . . . . . . . . . . . . . . . . . . . . . . . . AOE 7 | . . . . . . 4 . . . . . . . . 3 . . . . . . . . . . . . . Classes Destroyed 17 | 2 5 1 2 . . 1 . . 3 . . . . . 1 . . . . . 2 . . . . . . . Worker 10 | . 1 . . . . 3 . 1 1 . . . 1 . . . . . . 2 . . . . 1 . . . Builder 3 | . . . . . . . . . 3 . . . . . . . . . . . . . . . . . . . Tunneler 5 | 1 1 . . . . . . 2 . . . . . . 1 . . . . . . . . . . . . . Hauler 15 | . 2 . . . . 3 . 3 . . . 2 4 . . . . . . . . . . . . 1 . . Recycler 25 | 1 6 3 . 1 . 2 . 5 1 . . 1 . . 1 . . . . . . . . . 2 . 2 . Minesweeper 2 | . . . . . . . . . . . . . . . . . . . . . 1 1 . . . . . . Mechanic 2 | . . . . . . 1 . . . . . . . . 1 . . . . . . . . . . . . . Operator 3 | . 2 . . . . . . . 1 . . . . . . . . . . . . . . . . . . . Turret 2 | . . . 2 . . . . . . . . . . . . . . . . . . . . . . . . . Watcher 12 | . 2 . . . . . . 2 1 . . . 1 . 1 . . . . . . . . . 4 . 1 . Swarmer 19 | . . 11 4 . . 4 . . . . . . . . . . . . . . . . . . . . . . Cutter 4 | . . . . . . . . . . . . . . . 4 . . . . . . . . . . . . . Grunt 17 | . 9 8 . . . . . . . . . . . . . . . . . . . . . . . . . . Sentry 1 | . . . . . . . . . 1 . . . . . . . . . . . . . . . . . . . Subdweller 8 | . . . 8 . . . . . . . . . . . . . . . . . . . . . . . . . Decomposer 2 | . . . . . . . . . . . . . . . . . . . . . 1 . . 1 . . . . Packrat 7 | . . . . . . . . . . . . . . . . . . . . . 2 5 . . . . . . Samaritan 1 | . . . . . . . . . . . . . . . . . . . . . 1 . . . . . . . Butcher 1 | . . . . . . . . . 1 . . . . . . . . . . . . . . . . . . . Best Kill Streak 7 | 2 5 7 6 1 . 4 . 2 3 . . 2 2 . 3 . . . . 2 1 1 . . 3 1 3 . Combat Bots Only 5 | . 2 5 4 . . 4 . . 1 . . . . . 3 . . . . . . . . . . . . . Max Kills in Single Turn 3 | 2 1 2 1 1 . 3 . 1 3 . . 1 1 . 3 . . . . 1 1 1 . 1 1 1 1 . Gunslinging . | . . . . . . . . . . . . . . . . . . . . . . . . . . . . . Exploded 3 | . . . . . . 3 . . . . . . . . 3 . . . . . . . . . . . . . Melee 1 | . . . . . . . . . . . . . . . 1 . . . . . . . . . . . . . Uniques/NPCs Destroyed . | . . . . . . . . . . . . . . . . . . . . . . . . . . . . . Combat | -11 -10 -10 -10 -8 -8 -6 -6 -6 -6 -6 -6 -6 -5 -5 -5 -5 -5 -5 -4 -4 -4 -4 -4 -3 -3 -2 -2 -2 -------- Run | Yrd Mat Min Sub Rec Scr Fac Was Fac Ext Cet Arc Hub Fac Was Fac Upp Upp War Pro Fac Upp Upp Zhi Pro Res Res Qua Frg Hostile Shots Fired 1142 | . 35 100 83 . . 48 . 110 115 8 16 25 87 . 64 . . 14 . 46 6 . . 6 66 44 13 256 Missed 590 | . 6 29 30 . . 25 . 66 61 2 9 11 48 . 35 . . 7 . 36 2 . . 2 55 35 10 121 Hits 552 | . 29 71 53 . . 23 . 44 54 6 7 14 39 . 29 . . 7 . 10 4 . . 4 11 9 3 135 Melee 50 | . . . . . . . . . . . . . . . 8 . . . . . . . . . . 1 . 41 Projectile 502 | . 29 71 53 . . 23 . 44 54 6 7 14 39 . 21 . . 7 . 10 4 . . 4 11 8 3 94 AOE 10 | . . . . . . . . . . . . . 1 . 4 . . 1 . . . . . . . 1 . 3 Critical Strikes 54 | . 1 1 1 . . . . 2 1 1 . 2 2 . 3 . . . . . . . . . . . . 40 Actively Blocked 36 | . . . . . . . . . . . . . . . . . . . . . . . . . . . . 36 Part Disruptions 2 | . . . . . . . . . . . . . 1 . . . . . . . . . . . 1 . . . Actively Blocked 1 | . . . . . . . . . . . . . . . . . . . . . . . . . 1 . . . Damage Taken 11575 | . 379 651 945 . . 376 . 634 838 141 169 372 734 . 839 . . 212 . 192 67 . . 57 293 326 23 4327 Core 2594 | . 10 56 164 . . 132 . 209 272 69 25 92 152 . 106 . . 81 . . 13 . . . 22 . . 1191 Absorbed by Shields 316 | . . . . . . . . 50 22 12 . . . . . . . . . . . . . . . . . 232 Redirected to Shielding 936 | . . . . . . 41 . 63 14 . . . . . 113 . . 11 . 21 . . . 32 59 . . 582 Ignored by Resistances 90 | . . . . . . . . . . . . . . . . . . . . . . . . . . . . 90 Regen/Repaired (Parts) 2313 | . 37 . . . . 161 . 156 . 22 3 96 506 7 161 . . 9 . . . . . . 123 . 23 1009 Core Remaining (%) 62 | 100 . . . . 8 . . . . . . 6 . . . . . . 66 . . . . 98 98 . . . Volleys Fired 217 | 5 60 52 56 3 . 3 . . 34 . . 2 1 . 1 . . . . . . . . . . . . . Largest 2 | 2 2 2 2 2 . 1 . . 2 . . 1 1 . 1 . . . . . . . . . . . . . Hottest 128 | 60 60 60 128 56 . 36 . . 66 . . 43 5 . 43 . . . . . . . . . . . . . Shots Fired 386 | 10 120 98 96 6 . 3 . . 49 . . 2 1 . 1 . . . . . . . . . . . . . Gun 117 | 10 34 . 19 6 . . . . 48 . . . . . . . . . . . . . . . . . . . Cannon 249 | . 86 98 65 . . . . . . . . . . . . . . . . . . . . . . . . . Launcher 7 | . . . . . . 3 . . 1 . . 2 . . 1 . . . . . . . . . . . . . Special 13 | . . . 12 . . . . . . . . . 1 . . . . . . . . . . . . . . . Kinetic 361 | 5 120 98 84 6 . . . . 48 . . . . . . . . . . . . . . . . . . . Thermal 17 | 5 . . 12 . . . . . . . . . . . . . . . . . . . . . . . . . Explosive 7 | . . . . . . 3 . . 1 . . 2 . . 1 . . . . . . . . . . . . . Electromagnetic . | . . . . . . . . . . . . . . . . . . . . . . . . . . . . . Robot Hit Streak 14 | 3 8 9 14 14 . . . . 12 . . . 3 . . . . . . . . . . . . . . . Robot Miss Streak 6 | 2 3 6 4 4 . . . . 1 . . . . . . . . . . . . . . . . . . . Penetration Max 2 | . . . . . . . . . 2 . . . . . . . . . . . . . . . . . . . Secondary Targets . | . . . . . . . . . . . . . . . . . . . . . . . . . . . . . Shots Hit Robots 360 | 6 76 48 65 2 . 18 . 24 49 . 1 8 11 . 8 . . . . 2 18 6 . 1 10 3 4 . Core Hits 154 | 3 31 27 23 1 . 10 . 12 24 . . 6 3 . 5 . . . . . 2 . . . 3 1 3 . Critical Kills 3 | . . . . . . . . . 3 . . . . . . . . . . . . . . . . . . . Critical Parts Destroyed 26 | . 2 . . . . . . . 12 . . . 1 . 1 . . . . 1 5 3 . . 1 . . . Critical Strikes 47 | . 3 1 3 . . 2 . 2 20 . . 2 2 . 1 . . . . 1 5 3 . . 1 1 . . Destroy 21 | . 2 . . . . . . . 19 . . . . . . . . . . . . . . . . . . . Blast 5 | . 1 1 3 . . . . . . . . . . . . . . . . . . . . . . . . . Smash 12 | . . . . . . . . . . . . . 1 . 1 . . . . 1 5 3 . . 1 . . . Sever 4 | . . . . . . 2 . 1 . . . . . . . . . . . . . . . . . 1 . . Impale 5 | . . . . . . . . 1 1 . . 2 1 . . . . . . . . . . . . . . . Melee Attacks 493 | . . . . . . 39 . 62 18 . 1 13 69 . 22 1 3 13 5 16 26 11 . 85 61 21 13 14 Impact 209 | . . . . . . . . . . . . . 29 . 14 1 3 13 5 16 26 11 . 72 19 . . . Slashing 165 | . . . . . . 39 . 40 . . . . . . . . . . . . . . . . 38 21 13 14 Piercing 119 | . . . . . . . . 22 18 . 1 13 40 . 8 . . . . . . . . 13 4 . . . Sneak Attacks 61 | . . . . . . 10 . 11 3 . 1 4 7 . 4 . . . . 1 5 6 . 1 3 2 3 . Combat Hostiles . | . . . . . . . . . . . . . . . . . . . . . . . . . . . . . Follow-up Attacks . | . . . . . . . . . . . . . . . . . . . . . . . . . . . . . Damage Inflicted 14822 | 86 1154 997 1209 34 . 1533 . 1513 1093 . 70 481 823 . 806 . . . . 182 2149 674 . 150 915 289 641 23 Guns 981 | 86 254 . 251 34 . . . . 356 . . . . . . . . . . . . . . . . . . . Cannons 2746 | . 868 944 934 . . . . . . . . . . . . . . . . . . . . . . . . . Explosions 825 | . . . . . . 414 . . 240 . . 10 . . 161 . . . . . . . . . . . . . Melee 10138 | . . . . . . 1119 . 1513 497 . 70 471 823 . 645 . . . . 182 2149 674 . 150 915 289 641 . Ramming 108 | . 32 53 . . . . . . . . . . . . . . . . . . . . . . . . . 23 Kinetic 3692 | 51 1122 944 1185 34 . . . . 356 . . . . . . . . . . . . . . . . . . . Thermal 59 | 35 . . 24 . . . . . . . . . . . . . . . . . . . . . . . . . Explosive 815 | . . . . . . 414 . . 240 . . . . . 161 . . . . . . . . . . . . . Electromagnetic 10 | . . . . . . . . . . . . 10 . . . . . . . . . . . . . . . . Impact 4466 | . . . . . . . . . . . . . 294 . 562 . . . . 182 2149 674 . 150 455 . . . Slashing 3717 | . . . . . . 1119 . 1208 . . . . . . . . . . . . . . . . 460 289 641 . Piercing 1955 | . . . . . . . . 305 497 . 70 471 529 . 83 . . . . . . . . . . . . . Highest Corruption 8 | . . . . . . 1 7 7 2 2 2 4 6 6 6 6 6 6 . . . . . . . 1 3 8 Average Corruption 3 | . . . . . . 1 1 3 2 2 2 2 3 6 6 6 6 6 . . . . . . . 1 1 3 Corruption Purged 7 | . . . . . . . . 7 . . . . . . . . . . . . . . . . . . . . Corruption Blocked . | . . . . . . . . . . . . . . . . . . . . . . . . . . . . . Effects 106 | . . . . . . 7 . 18 14 3 1 4 18 . 12 12 4 1 . . . . . . . . 2 10 Message Errors 24 | . . . . . . 1 . 2 4 . . 1 5 . 2 6 . 1 . . . . . . . . 1 1 Matter Fused 33 | . . . . . . 4 . 4 4 1 . 1 6 . 5 4 1 . . . . . . . . . 1 2 Heat Flow Errors 17 | . . . . . . . . 4 1 1 . 2 3 . 2 1 1 . . . . . . . . . . 2 Energy Discharges 15 | . . . . . . 1 . 6 1 . . . 3 . 1 . 1 . . . . . . . . . . 2 Parts Rejected 2 | . . . . . . . . . . . . . . . . . . . . . . . . . . . . 2 Data Loss (minor) 9 | . . . . . . 1 . 1 1 1 1 . 1 . 1 . 1 . . . . . . . . . . 1 Data Loss (major) 4 | . . . . . . . . . 2 . . . . . 1 1 . . . . . . . . . . . . Alerts 2 | . . . . . . . . 1 1 . . . . . . . . . . . . . . . . . . . Overload Shots . | . . . . . . . . . . . . . . . . . . . . . . . . . . . . . Overflow Damage 4577 | . . 19 . . . 400 . 364 106 . 40 71 319 . 410 . . . . 142 1512 582 . 144 291 28 149 . Projectiles 19 | . . 19 . . . . . . . . . . . . . . . . . . . . . . . . . . Explosions 95 | . . . . . . 79 . . . . . . . . 16 . . . . . . . . . . . . . Melee 4463 | . . . . . . 321 . 364 106 . 40 71 319 . 394 . . . . 142 1512 582 . 144 291 28 149 . Knockbacks 34 | . 14 6 6 . . . . . . . . . . . . . . . . 2 1 2 . . 3 . . . Impact 8 | . . . . . . . . . . . . . . . . . . . . 2 1 2 . . 3 . . . Kinetic 24 | . 12 6 6 . . . . . . . . . . . . . . . . . . . . . . . . . Secondary 2 | . 2 . . . . . . . . . . . . . . . . . . . . . . . . . . . Self-Inflicted Damage 370 | . . 12 . . . 36 . . . . . 131 . . 180 . . . . . . . . . . . . 11 Shots 6 | . . . . . . 1 . . . . . 2 . . 3 . . . . . . . . . . . . . Rammed 16 | . 5 7 . . . . . . . . . . . . . . . . . . . . . . . . . 4 Targets Rammed 16 | . 5 7 . . . . . . . . . . . . . . . . . . . . . . . . . 4 Kicked . | . . . . . . . . . . . . . . . . . . . . . . . . . . . . . Crushed . | . . . . . . . . . . . . . . . . . . . . . . . . . . . . . Highest Temperature 456 | 20 177 231 275 12 . 413 69 246 134 157 40 205 452 . 226 148 208 3 . 456 . . 9 168 162 313 60 188 Average Temperature 53 | 20 51 92 158 6 . 16 38 83 47 57 27 96 118 . 54 82 104 3 . 193 . . 3 19 22 138 31 83 Received Heat Transfer 1446 | . 240 93 509 . . 39 . 99 151 18 36 27 39 . . . . 21 . 9 21 . . . 33 . . 111 Effects 11 | . . 4 . . . . . . . . . . 2 . . . . . . 4 . . . . . 1 . . Shutdowns 2 | . . . . . . . . . . . . . 1 . . . . . . . . . . . . 1 . . Interference 4 | . . 4 . . . . . . . . . . . . . . . . . . . . . . . . . . Damage (minor) 1 | . . . . . . . . . . . . . 1 . . . . . . . . . . . . . . . Damage (major) 4 | . . . . . . . . . . . . . . . . . . . . 4 . . . . . . . . Siege Activations . | . . . . . . . . . . . . . . . . . . . . . . . . . . . . . Martial Activations . | . . . . . . . . . . . . . . . . . . . . . . . . . . . . . Shielding Activations . | . . . . . . . . . . . . . . . . . . . . . . . . . . . . . Robots Disrupted . | . . . . . . . . . . . . . . . . . . . . . . . . . . . . . Combat Hostiles . | . . . . . . . . . . . . . . . . . . . . . . . . . . . . . Robots Corrupted 13 | . . . . . . . . . . . . . 2 . 2 . . . . 2 2 2 . . 3 . . . Combat Hostiles . | . . . . . . . . . . . . . . . . . . . . . . . . . . . . . Parts Fried 17 | . . . . . . . . . . . . . 1 . 7 . . . . . 3 2 . . 4 . . . Impact Corruptions 79 | . . . . . . . . . . . . . 2 . 9 . . . . 5 38 17 . 4 4 . . . Robots Melted . | . . . . . . . . . . . . . . . . . . . . . . . . . . . . . Combat Hostiles . | . . . . . . . . . . . . . . . . . . . . . . . . . . . . . Parts Melted 1 | . . . 1 . . . . . . . . . . . . . . . . . . . . . . . . . Heat Transferred 125 | 75 . . 50 . . . . . . . . . . . . . . . . . . . . . . . . . Parts Sabotaged . | . . . . . . . . . . . . . . . . . . . . . . . . . . . . . Parts Stolen . | . . . . . . . . . . . . . . . . . . . . . . . . . . . . . Parts Stripped . | . . . . . . . . . . . . . . . . . . . . . . . . . . . . . Power Chain Reactions . | . . . . . . . . . . . . . . . . . . . . . . . . . . . . . Alert | -11 -10 -10 -10 -8 -8 -6 -6 -6 -6 -6 -6 -6 -5 -5 -5 -5 -5 -5 -4 -4 -4 -4 -4 -3 -3 -2 -2 -2 ------- Run | Yrd Mat Min Sub Rec Scr Fac Was Fac Ext Cet Arc Hub Fac Was Fac Upp Upp War Pro Fac Upp Upp Zhi Pro Res Res Qua Frg Maximum Alert Level 2 | . . . . . . 1 . 1 2 1 . 1 . . 1 . . . . 1 . . . . . . . 2 Low Security (%) 88 | 100 100 100 . 100 . 77 100 88 79 . 100 91 100 100 37 . . . . 98 . . . . 100 100 100 40 Level 1 10 | . . . . . . 22 . 11 14 100 . 8 . . 62 . . . . 1 . . . . . . . 36 Level 2 1 | . . . . . . . . . 6 . . . . . . . . . . . . . . . . . . 23 Level 3 . | . . . . . . . . . . . . . . . . . . . . . . . . . . . . . Level 4 . | . . . . . . . . . . . . . . . . . . . . . . . . . . . . . Level 5 . | . . . . . . . . . . . . . . . . . . . . . . . . . . . . . High Security . | . . . . . . . . . . . . . . . . . . . . . . . . . . . . . Max Security . | . . . . . . . . . . . . . . . . . . . . . . . . . . . . . Peak Influence 554 | 10 189 130 . 30 . 252 73 245 444 293 85 362 162 30 355 . . . . 213 . . . . 164 158 175 554 Initial 241 | . . 50 . . . . 43 51 118 241 85 8 157 30 21 . . . . . . . . . . 88 78 95 Average 86 | . 77 40 . 2 . 125 47 64 132 247 60 144 52 30 233 . . . . 89 . . . . 13 123 124 277 Influence Increases 8118 | 10 481 465 165 79 . 737 30 754 888 103 . 514 561 . 705 . 15 480 . 421 10 20 . . 457 202 202 819 Destroy 0b10 Robot/C 1620 | . 180 380 120 . . 80 . 200 400 60 . . . . 180 . . . . 20 . . . . . . . . Destroy 0b10 Robot/NC 400 | 10 70 15 . 5 . 45 . 70 35 5 . 15 30 . 20 . . . . 10 10 5 . . 35 5 15 . Destroy Leader 330 | . 48 70 . . . 16 . 72 62 . . . 8 . 32 . . . . 10 . . . . 8 2 2 . Allied During Kill 102 | . . . . . . . . 6 72 10 . . . . 14 . . . . . . . . . . . . . Trap Triggered on 0b10 10 | . . . . . . . . . . . . . 10 . . . . . . . . . . . . . . . Successful Hack 1060 | . . . . 14 . 103 . 88 54 . . 8 179 . 136 . . . . 196 . . . . 103 69 56 54 Select Force Hacks 140 | . 30 . . 60 . . . . . . . 50 . . . . . . . . . . . . . . . . Disable Machine 570 | . 60 . . . . 30 . 30 30 . . 150 30 . 45 . . . . 30 . . . . 15 15 75 60 Anti-Garrison Action 200 | . . . . . . . . . . . . 200 . . . . . . . . . . . . . . . . Destroy Structure 506 | . 3 . . . . 28 . 33 10 13 . 91 94 . 38 . . . . 20 . . . . 86 51 9 30 Partial Spotted 1035 | . . . . . . 135 30 225 150 . . . 180 . 45 . . . . 45 . . . . 30 30 30 135 Lose Combat Pursuer 2145 | . 90 . 45 . . 300 . 30 75 15 . . 30 . 195 . 15 480 . 90 . 15 . . 180 30 15 540 Influence Decreases 7800 | 10 351 575 185 79 . 613 81 585 698 321 189 217 795 58 465 270 10 237 248 208 223 20 . . 299 220 172 671 Entered New Map 1526 | . . 80 11 . . . 81 22 124 191 129 17 165 58 9 100 . 5 248 . 79 . . . . 70 62 75 Time Decay 4895 | 10 351 445 174 79 . 481 . 384 381 110 30 170 509 . 246 170 10 232 . 198 144 20 . . 285 150 110 206 Search Patrol Dispatched 300 | . . . . . . 100 . . . . . . . . 100 . . . . . . . . . . . . 100 Lost Part 477 | . . 50 . . . 2 . 10 15 . 10 30 20 . 50 . . . . . . . . . . . . 290 Lost Ally 541 | . . . . . . 30 . 169 178 20 20 . 40 . 60 . . . . 10 . . . . 14 . . . Purge Threat 61 | . . . . . . . . . . . . . 61 . . . . . . . . . . . . . . . Squads Dispatched 105 | . 2 . . . . 19 . 20 4 . . 4 16 . 10 . . . . 10 . . . . 9 4 3 4 Investigation 58 | . 1 . . . . 14 . 13 3 . . 2 8 . 6 . . . . 5 . . . . 3 1 1 1 Extermination 30 | . . . . . . 4 . 5 . . . 1 6 . 2 . . . . 2 . . . . 6 2 2 . Reinforcement 17 | . 1 . . . . 1 . 2 1 . . 1 2 . 2 . . . . 3 . . . . . 1 . 3 Assault . | . . . . . . . . . . . . . . . . . . . . . . . . . . . . . Garrison . | . . . . . . . . . . . . . . . . . . . . . . . . . . . . . Intercept . | . . . . . . . . . . . . . . . . . . . . . . . . . . . . . Searches Triggered 3 | . . . . . . 1 . . . . . . . . 1 . . . . . . . . . . . . 1 Construction Impeded 2 | . . . . . . . . . 1 . . 1 . . . . . . . . . . . . . . . . Haulers Reinforced 3 | . . . . . . . . 1 . . . . 2 . . . . . . . . . . . . . . . Active Scanning Responses . | . . . . . . . . . . . . . . . . . . . . . . . . . . . . . Cargo Convoy Interrupts . | . . . . . . . . . . . . . . . . . . . . . . . . . . . . . Stealth | -11 -10 -10 -10 -8 -8 -6 -6 -6 -6 -6 -6 -6 -5 -5 -5 -5 -5 -5 -4 -4 -4 -4 -4 -3 -3 -2 -2 -2 --------- Run | Yrd Mat Min Sub Rec Scr Fac Was Fac Ext Cet Arc Hub Fac Was Fac Upp Upp War Pro Fac Upp Upp Zhi Pro Res Res Qua Frg Distress Signals 30 | . 3 . . . . 1 . 5 1 1 . 1 4 . 3 . . 2 . 2 . . . . 2 2 . 3 Communications Jammed . | . . . . . . . . . . . . . . . . . . . . . . . . . . . . . Distress Signals . | . . . . . . . . . . . . . . . . . . . . . . . . . . . . . Times Spotted 654 | . 25 19 15 . . 52 . 79 27 6 4 14 58 5 32 . 2 86 . 32 7 1 . 1 53 32 11 93 Peak Tracking Total 28 | . 3 3 5 . . 15 . 13 6 5 4 14 12 5 13 . 3 15 . 13 5 4 . 1 13 11 9 28 Tactical Retreats 130 | . 6 . 2 . . 13 . 21 6 1 . 1 20 . 7 . 1 10 . 6 4 1 . 1 12 6 3 9 ECM-based Alert Blocks 235 | . . . . . . 27 . 56 3 . . 3 44 . 6 . . . . 13 14 3 . 1 35 24 6 . Traps | -11 -10 -10 -10 -8 -8 -6 -6 -6 -6 -6 -6 -6 -5 -5 -5 -5 -5 -5 -4 -4 -4 -4 -4 -3 -3 -2 -2 -2 ------- Run | Yrd Mat Min Sub Rec Scr Fac Was Fac Ext Cet Arc Hub Fac Was Fac Upp Upp War Pro Fac Upp Upp Zhi Pro Res Res Qua Frg Traps Triggered 33 | . 1 . . . . 2 . 7 4 . . . 2 . 2 . . . . . . . . . 2 . 4 9 Indirectly . | . . . . . . . . . . . . . . . . . . . . . . . . . . . . . Trap Hack Attempts . | . . . . . . . . . . . . . . . . . . . . . . . . . . . . . Triggered . | . . . . . . . . . . . . . . . . . . . . . . . . . . . . . Disarmed . | . . . . . . . . . . . . . . . . . . . . . . . . . . . . . Reprogrammed 6 | . . . . . . . . . . . . . 6 . . . . . . . . . . . . . . . Reused 1 | . . . . . . . . . . . . . 1 . . . . . . . . . . . . . . . Traps Extracted . | . . . . . . . . . . . . . . . . . . . . . . . . . . . . . Installed . | . . . . . . . . . . . . . . . . . . . . . . . . . . . . . Triggered 1 | . . . . . . . . . . . . . 1 . . . . . . . . . . . . . . . Machines | -11 -10 -10 -10 -8 -8 -6 -6 -6 -6 -6 -6 -6 -5 -5 -5 -5 -5 -5 -4 -4 -4 -4 -4 -3 -3 -2 -2 -2 ---------- Run | Yrd Mat Min Sub Rec Scr Fac Was Fac Ext Cet Arc Hub Fac Was Fac Upp Upp War Pro Fac Upp Upp Zhi Pro Res Res Qua Frg Machines Disabled 41 | . 4 . 1 . . 2 . 2 2 . . 10 2 . 3 . . 1 . 2 . 1 . . 1 1 5 4 Max in Single Turn 7 | . 2 . 1 . . 1 . . 1 . . 7 1 . 2 . . 1 . 1 . 1 . . 1 1 1 1 Garrison Access 13 | . . . . . . 2 . 2 . . . 1 3 . 1 . . . . 2 . . . . 2 . . . Network Hub 2 | . . . . . . . . . . . . 2 . . . . . . . . . . . . . . . . Machines Repaired . | . . . . . . . . . . . . . . . . . . . . . . . . . . . . . Machines Dismantled . | . . . . . . . . . . . . . . . . . . . . . . . . . . . . . Machines Sabotaged 1 | . . . . . . . . . . . . 1 . . . . . . . . . . . . . . . . Overloaded Fab Kills . | . . . . . . . . . . . . . . . . . . . . . . . . . . . . . Hacking | -11 -10 -10 -10 -8 -8 -6 -6 -6 -6 -6 -6 -6 -5 -5 -5 -5 -5 -5 -4 -4 -4 -4 -4 -3 -3 -2 -2 -2 --------- Run | Yrd Mat Min Sub Rec Scr Fac Was Fac Ext Cet Arc Hub Fac Was Fac Upp Upp War Pro Fac Upp Upp Zhi Pro Res Res Qua Frg Machines Accessed 246 | . 6 1 1 7 3 33 . 33 17 . . 3 29 . 20 1 1 11 . 20 . 1 6 . 29 7 10 7 Terminals 127 | . 4 . . 4 . 11 . 16 15 . . 2 14 . 11 . 1 . . 9 . 1 . . 18 5 9 7 Fabricators 20 | . . . . . . 6 . 4 . . . . 2 . 3 . . . . 3 . . . . 2 . . . Repair Stations 18 | . 1 . . . . 5 . 3 . . . . 2 . 1 . . . . 2 . . . . 4 . . . Recycling Units 38 | . 1 . . 3 . 7 . 8 2 . . . 7 . 3 . . . . 2 . . . . 3 2 . . Scanalyzers 7 | . . . . . . 2 . . . . . . 1 . 1 . . . . 2 . . . . . . 1 . Garrison Access 13 | . . . . . . 2 . 2 . . . 1 3 . 1 . . . . 2 . . . . 2 . . . Total Hacks 850 | . 14 1 5 20 10 88 . 120 34 . . 6 129 . 97 1 1 20 . 86 . 1 18 . 103 33 28 35 Successful 471 | . 6 1 5 8 10 58 . 67 20 . . 3 74 . 60 1 1 20 . 39 . 1 18 . 43 11 13 12 Failed 378 | . 8 . . 12 . 30 . 53 14 . . 3 54 . 37 . . . . 47 . . . . 60 22 15 23 Catastrophic 58 | . 2 . . 1 . 3 . 5 . . . 1 7 . 5 . . . . 8 . . . . 15 4 4 3 Database Lockouts 1 | . . . . . . . . . . . . . 1 . . . . . . . . . . . . . . . Manual 390 | . 6 . . 11 . 28 . 62 11 1 . 2 61 . 51 . . . . 45 . 1 . . 49 22 9 31 Terminals 497 | . 10 . . 12 . 29 . 55 27 . . 4 82 . 65 . 1 . . 61 . 1 . . 69 19 27 35 Fabricators 91 | . . . . . . 19 . 22 . . . . 14 . 20 . . . . 7 . . . . 9 . . . Repair Stations 50 | . 2 . . . . 14 . 13 . . . . 4 . 2 . . . . 5 . . . . 10 . . . Recycling Units 110 | . 2 . . 8 . 16 . 27 7 . . . 16 . 7 . . . . 3 . . . . 10 14 . . Scanalyzers 18 | . . . . . . 6 . . . . . . 4 . 2 . . . . 5 . . . . . . 1 . Garrison Access 29 | . . . . . . 4 . 3 . . . 2 9 . 1 . . . . 5 . . . . 5 . . . Terminal Hacks 198 | . 2 1 5 5 10 6 . 19 13 . . 1 28 . 21 1 1 20 . 9 . 1 18 . 19 4 9 5 Record 40 | . . . 5 . 10 . . . . . . . . . . . 1 13 . . . 1 6 . 1 . 3 . Part Schematic 9 | . . . . . . 1 . 3 . . . . 1 . . . . . . . . . 4 . . . . . Robot Analysis 6 | . 1 . . . . . . . . . . . 1 . . . . . . . . . 4 . . . . . Prototype ID Bank 20 | . . . . 2 . . . 2 2 . . . 2 . 1 . . 5 . . . . 4 . 1 . 1 . Open Door 11 | . . 1 . . . . . 1 5 . . . . . . 1 . 2 . . . . . . . 1 . . Level Access Points 1 | . . . . . . . . . . . . . 1 . . . . . . . . . . . . . . . Branch Access Points 7 | . . . . . . 1 . 1 . . . . 1 . 1 . . . . 1 . . . . 1 1 . . Emergency Access Points 6 | . . . . . . . . 1 . . . . . . 1 . . . . . . . . . 2 . 1 1 Machine Index 1 | . . . . . . . . . . . . . 1 . . . . . . . . . . . . . . . Terminal Index 6 | . . . . 1 . . . 1 . . . . 1 . 1 . . . . . . . . . . 1 . 1 Recycling Unit Index 1 | . . . . . . . . . . . . . . . . . . . . 1 . . . . . . . . Garrison Index 3 | . . . . . . . . . . . . . 1 . 1 . . . . 1 . . . . . . . . Alert Level 2 | . . . . . . . . . . . . . 2 . . . . . . . . . . . . . . . Unreport Threat 1 | . . . . . . . . . . . . . 1 . . . . . . . . . . . . . . . Locate Traps 35 | . 1 . . . . 3 . 5 4 . . . 4 . 5 . . . . 2 . . . . 6 1 3 1 Reprogram Traps 1 | . . . . . . . . . . . . . 1 . . . . . . . . . . . . . . . Maintenance Status 2 | . . . . 1 . . . . . . . . . . . . . . . . . . . . . . . 1 Security Status 1 | . . . . 1 . . . . . . . . . . . . . . . . . . . . . . . . Patrol Status 1 | . . . . . . . . . . . . . . . 1 . . . . . . . . . . . . . Investigation Status 1 | . . . . . . . . . . . . . . . 1 . . . . . . . . . . . . . Extermination Status 1 | . . . . . . . . . . . . . . . . . . . . . . . . . 1 . . . Recall Investigation 13 | . . . . . . . . 2 2 . . . 4 . 4 . . . . . . . . . 1 . . . Recall Extermination 6 | . . . . . . . . 1 . . . . 1 . . . . . . 1 . . . . 3 . . . Recall Reinforcements 2 | . . . . . . . . . . . . . . . 1 . . . . 1 . . . . . . . . Hauler Manifests 9 | . . . . . . 1 . 1 . . . 1 1 . 1 . . . . 1 . . . . 1 . 1 1 Registered Components 3 | . . . . . . . . . . . . . 1 . 1 . . . . . . . . . 1 . . . Registered Prototypes 1 | . . . . . . . . . . . . . 1 . . . . . . . . . . . . . . . Zone Layout 8 | . . . . . . . . 1 . . . . 3 . 2 . . . . 1 . . . . 1 . . . Fabricator Hacks 35 | . . . . . . 14 . 7 . . . . 4 . 7 . . . . 2 . . . . 1 . . . Network Status 7 | . . . . . . . . 2 . . . . 1 . 2 . . . . 1 . . . . 1 . . . Load Schematic 13 | . . . . . . 7 . 2 . . . . 1 . 3 . . . . . . . . . . . . . Build 15 | . . . . . . 7 . 3 . . . . 2 . 2 . . . . 1 . . . . . . . . Repair Station Hacks 34 | . 2 . . . . 12 . 8 . . . . 4 . 2 . . . . 1 . . . . 5 . . . Scan Component 15 | . 1 . . . . 5 . 4 . . . . 2 . 1 . . . . . . . . . 2 . . . Repair 15 | . 1 . . . . 5 . 4 . . . . 2 . 1 . . . . . . . . . 2 . . . Refit 4 | . . . . . . 2 . . . . . . . . . . . . . 1 . . . . 1 . . . Recycling Unit Hacks 23 | . 1 . . 1 . 4 . 6 2 . . . 6 . 1 . . . . 1 . . . . . 1 . . Retrieve Components 23 | . 1 . . 1 . 4 . 6 2 . . . 6 . 1 . . . . 1 . . . . . 1 . . Scanalyzer 13 | . . . . . . 6 . . . . . . 2 . 1 . . . . 3 . . . . . . 1 . Insert Component 5 | . . . . . . 2 . . . . . . . . . . . . . 2 . . . . . . 1 . Analyze 2 | . . . . . . 1 . . . . . . . . . . . . . 1 . . . . . . . . Retrieve Study 6 | . . . . . . 3 . . . . . . 2 . 1 . . . . . . . . . . . . . Garrison Access Hacks 12 | . . . . . . 2 . 2 . . . . 3 . 1 . . . . 2 . . . . 2 . . . Seal Access 12 | . . . . . . 2 . 2 . . . . 3 . 1 . . . . 2 . . . . 2 . . . Unauthorized Hacks 156 | . 1 . . 2 . 14 . 25 5 . . 2 27 . 27 . . . . 21 . . . . 16 6 3 7 Terminals 86 | . . . . . . 5 . 7 3 . . 1 17 . 16 . . . . 14 . . . . 12 1 3 7 Track 9 | . . . . . . . . 1 . . . . 3 . 2 . . . . 2 . . . . 1 . . . Assimilate 21 | . . . . . . 3 . 3 1 . . . 3 . 4 . . . . 2 . . . . 3 . . 2 Botnet 39 | . . . . . . 2 . 2 2 . . . 8 . 7 . . . . 6 . . . . 6 1 2 3 Disrupt 9 | . . . . . . . . . . . . . 2 . 1 . . . . 3 . . . . 1 . 1 1 Operators 7 | . . . . . . . . 1 . . . . 1 . 2 . . . . 1 . . . . 1 . . 1 Sabotage 1 | . . . . . . . . . . . . 1 . . . . . . . . . . . . . . . . Fabricators 29 | . . . . . . 2 . 9 . . . . 6 . 8 . . . . 4 . . . . . . . . Report 5 | . . . . . . . . 2 . . . . 1 . 1 . . . . 1 . . . . . . . . Prioritize 10 | . . . . . . 2 . 2 . . . . 2 . 3 . . . . 1 . . . . . . . . Liberate 9 | . . . . . . . . 3 . . . . 2 . 3 . . . . 1 . . . . . . . . Haulers 5 | . . . . . . . . 2 . . . . 1 . 1 . . . . 1 . . . . . . . . Repair Stations 3 | . . . . . . . . 1 . . . . . . . . . . . 1 . . . . 1 . . . Mechanics 2 | . . . . . . . . . . . . . . . . . . . . 1 . . . . 1 . . . Patch 1 | . . . . . . . . 1 . . . . . . . . . . . . . . . . . . . . Recycling Units 37 | . 1 . . 2 . 7 . 8 2 . . . 4 . 3 . . . . 2 . . . . 3 5 . . Monitor 1 | . . . . . . . . . . . . . . . . . . . . . . . . . . 1 . . Reject 1 | . . . . . . . . . . . . . . . . . . . . . . . . . . 1 . . Recyclers 1 | . . . . . . . . . . . . . . . . . . . . . . . . . . 1 . . Mask 1 | . . . . . . . . . . . . . . . . . . . . . . . . . . 1 . . Tunnel 3 | . 1 . . 2 . . . . . . . . . . . . . . . . . . . . . . . . Fedlink 29 | . . . . . . 7 . 8 2 . . . 4 . 3 . . . . 1 . . . . 3 1 . . Scraphulk 1 | . . . . . . . . . . . . . . . . . . . . 1 . . . . . . . . Scanalyzers . | . . . . . . . . . . . . . . . . . . . . . . . . . . . . . Garrison Access 1 | . . . . . . . . . . . . 1 . . . . . . . . . . . . . . . . Jam 1 | . . . . . . . . . . . . 1 . . . . . . . . . . . . . . . . Data Cores Recovered . | . . . . . . . . . . . . . . . . . . . . . . . . . . . . . Used . | . . . . . . . . . . . . . . . . . . . . . . . . . . . . . Hacking Detections 138 | . 5 . . 6 . 27 . 25 10 1 . 2 14 . 10 . . . . 6 . . . . 18 4 6 4 Full Trace Events 17 | . 2 . . . . 7 . 4 1 . . . 1 . 2 . . . . . . . . . . . . . Feedback Events . | . . . . . . . . . . . . . . . . . . . . . . . . . . . . . Feedback Blocked . | . . . . . . . . . . . . . . . . . . . . . . . . . . . . . Robot Schematics Acquired . | . . . . . . . . . . . . . . . . . . . . . . . . . . . . . Robots Built 2 | . . . . . . . . 2 . . . . . . . . . . . . . . . . . . . . Authchips . | . . . . . . . . . . . . . . . . . . . . . . . . . . . . . Time 76 | . . . . . . . . 76 . . . . . . . . . . . . . . . . . . . . Total Robot Build Rating 10 | . . . . . . . . 10 . . . . . . . . . . . . . . . . . . . . Part Schematics Acquired 10 | . . . . . . 2 . 3 . . . . 1 . . . . . . . . . 4 . . . . . Parts Built 18 | . . . . . . 7 . 3 . . . . 3 . 3 . . . . 2 . . . . . . . . Authchips 1 | . . . . . . 1 . . . . . . . . . . . . . . . . . . . . . . Time 843 | . . . . . . 547 . 123 . . . . 72 . 67 . . . . 34 . . . . . . . . Total Part Build Rating 107 | . . . . . . 32 . 15 . . . . 23 . 19 . . . . 18 . . . . . . . . Part Studies Acquired 6 | . . . . . . 3 . . . . . . 2 . 1 . . . . . . . . . . . . . Parts Repaired 15 | . 1 . . . . 5 . 4 . . . . 2 . 1 . . . . . . . . . 2 . . . Time 724 | . 26 . . . . 212 . 202 . . . . 138 . 40 . . . . . . . . . 106 . . . Parts Recycled . | . . . . . . . . . . . . . . . . . . . . . . . . . . . . . Recycled Matter . | . . . . . . . . . . . . . . . . . . . . . . . . . . . . . Retrieved Matter . | . . . . . . . . . . . . . . . . . . . . . . . . . . . . . Retrieved Components 70 | . 9 . . 2 . 7 . 17 13 . . . 20 . . . . . . 1 . . . . . 1 . . Parts Scanalyzed 2 | . . . . . . 1 . . . . . . . . . . . . . 1 . . . . . . . . Part Schematics Acquired 1 | . . . . . . 1 . . . . . . . . . . . . . . . . . . . . . . Parts Damaged . | . . . . . . . . . . . . . . . . . . . . . . . . . . . . . Bothacking | -11 -10 -10 -10 -8 -8 -6 -6 -6 -6 -6 -6 -6 -5 -5 -5 -5 -5 -5 -4 -4 -4 -4 -4 -3 -3 -2 -2 -2 ------------ Run | Yrd Mat Min Sub Rec Scr Fac Was Fac Ext Cet Arc Hub Fac Was Fac Upp Upp War Pro Fac Upp Upp Zhi Pro Res Res Qua Frg Used RIF Installer . | . . . . . . . . . . . . . . . . . . . . . . . . . . . . . Robots Hacked 1 | . . . . . . . . . . . . . 1 . . . . . . . . . . . . . . . Non-combat 1 | . . . . . . . . . . . . . 1 . . . . . . . . . . . . . . . Combat . | . . . . . . . . . . . . . . . . . . . . . . . . . . . . . Robot Hacks Applied 1 | . . . . . . . . . . . . . 1 . . . . . . . . . . . . . . . find_chute 1 | . . . . . . . . . . . . . 1 . . . . . . . . . . . . . . . Relay Couplers Released . | . . . . . . . . . . . . . . . . . . . . . . . . . . . . . Fabnet Peak Effective % . | . . . . . . . . . . . . . . . . . . . . . . . . . . . . . Robots Rewired 8 | . . . . . . . . . 7 . . . 1 . . . . . . . . . . . . . . . Allies Hacked 1 | . . . . . . . . 1 . . . . . . . . . . . . . . . . . . . . Hacks Repelled . | . . . . . . . . . . . . . . . . . . . . . . . . . . . . . Allies | -11 -10 -10 -10 -8 -8 -6 -6 -6 -6 -6 -6 -6 -5 -5 -5 -5 -5 -5 -4 -4 -4 -4 -4 -3 -3 -2 -2 -2 -------- Run | Yrd Mat Min Sub Rec Scr Fac Was Fac Ext Cet Arc Hub Fac Was Fac Upp Upp War Pro Fac Upp Upp Zhi Pro Res Res Qua Frg Total Allies 42 | . . . . . . 3 . 13 13 1 . . 3 . 4 . . . . 2 . . . . 3 . . . Largest Group 8 | . . . . . . 2 . 3 8 1 1 . 2 . 2 . . . . 1 . . . . 1 . . . Highest-Rated Group 219 | . . . . . . 36 . 106 219 159 96 . 52 . 82 . . . . 123 . . . . 45 . . . Highest-Rated Ally 159 | . . . . . . 26 . 37 159 159 96 . 49 . 41 . . . . 123 . . . . 45 . . . Initial UFD Resources 131 | . . . . . . 23 47 47 63 67 67 67 69 87 87 93 93 93 96 96 101 101 101 103 103 121 131 131 Total Orders 7 | . . 1 . . . . . . . . . . . . . 1 1 . 2 . . . . 2 . . . . EXPLORE 2 | . . . . . . . . . . . . . . . . . . . . . . . . 2 . . . . RETURN 5 | . . 1 . . . . . . . . . . . . . 1 1 . 2 . . . . . . . . . Ally Attacks 216 | . . . . . . . . 49 124 21 . . 4 . 17 . . . . 1 . . . . . . . . Total Damage 5202 | . . . . . . . . 1126 2479 938 . . 69 . 527 . . . . 63 . . . . . . . . Kills 40 | . . . . . . . . 11 19 4 . . . . 5 . . . . 1 . . . . . . . . Allies Corrupted 1 | . . . . . . . . 1 . . . . . . . . . . . . . . . . . . . . Allies Melted . | . . . . . . . . . . . . . . . . . . . . . . . . . . . . . Intel | -11 -10 -10 -10 -8 -8 -6 -6 -6 -6 -6 -6 -6 -5 -5 -5 -5 -5 -5 -4 -4 -4 -4 -4 -3 -3 -2 -2 -2 ------- Run | Yrd Mat Min Sub Rec Scr Fac Was Fac Ext Cet Arc Hub Fac Was Fac Upp Upp War Pro Fac Upp Upp Zhi Pro Res Res Qua Frg Active Infowar (turns) 13395 | 14 779 767 194 . . 1329 . 1932 973 167 66 338 1524 . 464 356 162 831 112 349 362 174 36 702 976 317 198 273 Optics 15 | . . . . . . . . . . . . . 15 . . . . . . . . . . . . . . . Sensors 10184 | . . . . . . 1145 . 1517 931 167 66 305 964 . 463 356 162 831 112 278 239 174 36 702 953 317 193 273 Seismic 1754 | 14 779 767 194 . . . . . . . . . . . . . . . . . . . . . . . . . Triangulation 2396 | . . . . . . 1190 . 349 77 . . 27 445 . 1 . . . . 53 . . . . 254 . . . Jamming 28 | . . . . . . 17 . 9 . . . . 2 . . . . . . . . . . . . . . . ECM 2428 | . . . . . . 123 . 430 118 . . 189 666 . 104 . . . . 81 164 22 . 49 279 126 77 . Robot Analysis Total 6 | . 1 . . . . . . . . . . . 1 . . . . . . . . . 4 . . . . . Derelict Logs Recovered 13 | . . 3 2 . 4 . . . . . . . . . . 1 1 . . . 2 . . . . . . . Drone Launches 11 | . . 1 . . . . . . . . . . . . . 3 3 . 2 . . . . 2 . . . . Drone Recoveries 10 | . . 1 . . . . . . . . . . . . . 3 2 . 2 . . . . 2 . . . . Exploration | -11 -10 -10 -10 -8 -8 -6 -6 -6 -6 -6 -6 -6 -5 -5 -5 -5 -5 -5 -4 -4 -4 -4 -4 -3 -3 -2 -2 -2 ------------- Run | Yrd Mat Min Sub Rec Scr Fac Was Fac Ext Cet Arc Hub Fac Was Fac Upp Upp War Pro Fac Upp Upp Zhi Pro Res Res Qua Frg Turns Passed 25058 | 65 1534 1790 3349 781 3226 1377 16 1952 1033 238 66 350 1725 14 524 361 162 924 112 409 526 174 1656 710 1013 317 226 428 Spaces Moved 35012 | 28 630 747 1527 438 1654 3255 60 4478 1730 262 63 261 3736 62 1454 792 412 1841 367 1461 784 519 235 1139 3729 1216 730 1402 Core 61 | . 1 . . . . . . . . 27 . . . . . . . 1 . . . . . . . . . 32 Treads 1755 | 28 629 520 578 . . . . . . . . . . . . . . . . . . . . . . . . . Legs . | . . . . . . . . . . . . . . . . . . . . . . . . . . . . . Wheels 3268 | . . 227 949 438 1654 . . . . . . . . . . . . . . . . . . . . . . . Hover . | . . . . . . . . . . . . . . . . . . . . . . . . . . . . . Flight 29928 | . . . . . . 3255 60 4478 1730 235 63 261 3736 62 1454 792 412 1840 367 1461 784 519 235 1139 3729 1216 730 1370 Fastest Speed 5 | 160 160 145 130 160 181 11 11 11 11 19 19 15 5 16 16 25 25 21 21 19 19 19 17 7 7 7 7 7 Average Speed 46 | 160 195 211 198 173 189 27 17 23 24 41 27 26 20 16 24 36 25 22 21 19 20 19 19 17 16 16 16 17 Slowest Speed 950 | 160 950 240 660 190 190 39 24 24 91 100 34 37 28 23 89 90 90 200 21 19 21 21 85 85 17 17 85 50 Overloaded Moves 1326 | . . . . . . 23 31 144 27 30 30 53 194 59 178 . . . . . . . . 21 117 115 27 277 Propulsion Burnouts 2 | . . . . . . . . . . . . . . . 1 . . . . . . . . . . . . 1 Robots Hopped 136 | . . . . . . 23 . 33 8 . . 7 12 1 18 . . . . 2 . . . . 10 1 4 17 Potential Cave-ins . | . . . . . . . . . . . . . . . . . . . . . . . . . . . . . Cave-ins Triggered . | . . . . . . . . . . . . . . . . . . . . . . . . . . . . . Teleports 5 | . . . . . . . . . . . . . . . . . . . . . . . . . . . 2 3 Exploration Rate (%) 66 | 3 80 98 70 75 92 60 75 82 88 50 71 20 66 78 40 82 60 96 61 40 75 69 62 95 67 27 79 65 Regions Visited 28 Branch Regions 18 Pre-discovered Areas 12 | . 1 1 . 2 3 1 . . . . . . . . . . . . . . 1 . 3 . . . . . Known Exits Taken 15 | . . . . . . . . 1 1 1 1 1 . . 1 . . . 1 1 1 1 1 1 1 1 1 . Unknown Exits Taken 9 | 1 1 1 1 1 1 . . . . . . . . . . 1 1 1 . . . . . . . . . . Scrap Searched 18 | . . 1 3 . 3 . . . . . . . . . . 3 1 . . . 3 3 . 1 . . . . Spaces Dug 297 | . . . 2 . . 16 . 33 1 . . 3 46 . 11 1 3 10 5 10 8 4 . 71 43 17 3 10 Terrain Destroyed 531 | . . . 2 . . 27 . 33 8 . . 211 46 . 19 1 3 10 5 10 8 4 . 71 43 17 3 10 Melee 295 | . . . . . . 16 . 33 1 . . 3 46 . 11 1 3 10 5 10 8 4 . 71 43 17 3 10 Projectile 2 | . . . 2 . . . . . . . . . . . . . . . . . . . . . . . . . AOE 234 | . . . . . . 11 . . 7 . . 208 . . 8 . . . . . . . . . . . . . Terrain Rammed . | . . . . . . . . . . . . . . . . . . . . . . . . . . . . . Walls Destroyed . | . . . . . . . . . . . . . . . . . . . . . . . . . . . . . Machines Disabled . | . . . . . . . . . . . . . . . . . . . . . . . . . . . . . Actions | -11 -10 -10 -10 -8 -8 -6 -6 -6 -6 -6 -6 -6 -5 -5 -5 -5 -5 -5 -4 -4 -4 -4 -4 -3 -3 -2 -2 -2 --------- Run | Yrd Mat Min Sub Rec Scr Fac Was Fac Ext Cet Arc Hub Fac Was Fac Upp Upp War Pro Fac Upp Upp Zhi Pro Res Res Qua Frg Total 42211 | 39 816 854 1715 452 1741 3657 64 5211 2248 390 109 498 4554 64 1564 861 458 2324 390 1554 1093 565 1843 1501 4001 1302 800 1543 Wait 5466 | . 75 29 54 . 69 242 2 568 375 111 42 207 604 . 63 43 39 406 17 30 270 33 1575 276 167 60 24 85 Move 34728 | 27 629 746 1526 437 1653 3211 59 4412 1713 261 62 249 3712 59 1421 791 411 1840 366 1456 783 518 234 1138 3709 1213 721 1371 Hop 122 | . . . . . . 21 . 32 8 . . 4 12 1 14 . . . . 2 . . . . 9 1 4 14 Pick Up 213 | 2 19 8 35 7 9 22 1 10 7 4 2 2 31 . 14 5 1 4 . 10 1 . 6 . 4 1 7 1 Fast Attach 162 | 1 6 2 3 . 1 18 . 10 4 4 . 2 24 2 5 2 1 22 . 3 . . 8 5 13 . 11 15 Attach 70 | 2 1 4 4 1 . 14 . 6 5 . . 3 9 . 4 4 . . . 2 . . . . 1 2 1 7 Detach 12 | . . 1 . . 1 3 . . 2 . . 2 1 . . 2 . . . . . . . . . . . . Swap 283 | . 6 2 24 3 1 26 1 52 8 2 . 11 34 . 9 5 3 10 2 18 13 3 7 6 25 4 6 2 Drop 283 | 2 15 3 13 1 7 43 1 12 6 8 2 3 48 2 12 8 . 28 . 14 . . 13 4 16 . 13 9 Fire 217 | 5 60 52 56 3 . 3 . . 34 . . 2 1 . 1 . . . . . . . . . . . . . Melee 467 | . . . . . . 39 . 62 18 . 1 13 61 . 21 1 3 13 5 16 26 11 . 72 57 21 13 14 Ram 6 | . . 2 . . . . . . . . . . . . . . . . . . . . . . . . . 4 Kick . | . . . . . . . . . . . . . . . . . . . . . . . . . . . . . Crush 10 | . 5 5 . . . . . . . . . . . . . . . . . . . . . . . . . . Escape Stasis 136 | . . . . . . 13 . 45 42 . . . 15 . . . . . . . . . . . . . . 21 Rewire 32 | . . . . . . . . . 26 . . . 2 . . . . 1 . 3 . . . . . . . . Trap . | . . . . . . . . . . . . . . . . . . . . . . . . . . . . . Miscellaneous 4 | . . . . . . 2 . 2 . . . . . . . . . . . . . . . . . . . . Route ------- -11/Scrapyard -10/Materials (discovered 4 exits: [*Mat x3] / *Min) -10/Mines (discovered 3 exits: [*Mat x2] / *Sub) -10/Subcaves (discovered 3 exits: [*Mat x2] / *Rec) -8/Recycling -8/Scraptown (discovered 2 exits: *Fac x2) -6/Factory (discovered 6 exits: *Fac x2 / *Low x2 / *Ext x2) -6/Waste -6/Factory (discovered 7 exits: *Fac x3 / *Low x2 / *Ext x2) -6/Extension (discovered 2 exits: *Fac / *Cet) -6/Cetus -6/Archives -6/Hub_04(d) -5/Factory (discovered 6 exits: *Fac x4 / *Upp x2) -5/Waste -5/Factory (discovered 5 exits: *Fac x3 / *Upp x2) -5/Upper Caves -5/Upper Caves -5/Warlord -4/Proximity Caves -4/Factory (discovered 3 exits: Res / *Upp x2) -4/Upper Caves -4/Upper Caves (discovered 2 exits: *Res / *Zhi) -4/Zhirov -3/Proximity Caves -3/Research (discovered 6 exits: *Res x3 / Arm / *Tes x2) -2/Research (discovered 3 exits: *Acc / *Qua x2) -2/Quarantine (discovered 3 exits: *Acc / [*Sec] / *Frg) -2/Protoforge (discovered 1 exit: *Acc) History --------- Turn | Location | Event 20 | -11/Scrapyard | Discovered new exit (range 2) 66 | -11/Scrapyard | Entered Materials 217 | -10/Materials | Discovered new exit (range 8) 347 | -10/Materials | Discovered new exit (range 8) 365 | -10/Materials | Build established: Mutant 557 | -10/Materials | Repaired Lgt. Treads 1051 | -10/Materials | Discovered new exit (range 8) 1514 | -10/Materials | Discovered new exit (range 7) 1600 | -10/Materials | Entered Mines 2049 | -10/Mines | Learned Materials security intel 2056 | -10/Mines | Learned Materials emergency access door positions 2362 | -10/Mines | Discovered new exit (range 7) 2412 | -10/Mines | Discovered new exit (range 9) 2600 | -10/Mines | Found the Drone Emporium 2620 | -10/Mines | Found Prototype Device 2620 | -10/Mines | Identified Thief Drone Bay 3037 | -10/Mines | Discovered new exit (range 9) 3390 | -10/Mines | Entered Subcaves 3646 | -10/Subcaves | Lost 3 parts (1p2w) 3682 | -10/Subcaves | Shifting Twisted Machinery released Flamer 3706 | -10/Subcaves | Shifting Twisted Machinery released Battle Cannon 3927 | -10/Subcaves | Shifting Twisted Machinery released Riot Gun 3952 | -10/Subcaves | Shifting Twisted Machinery released Barrage Gun 4157 | -10/Subcaves | Learned Materials emergency access door positions 4160 | -10/Subcaves | Discovered new exit (range 16) 4177 | -10/Subcaves | Discovered new exit (range 14) 4187 | -10/Subcaves | Visited Clippyterm 4192 | -10/Subcaves | Learned Factory fabricator intel 4192 | -10/Subcaves | Learned Research machine intel 4543 | -10/Subcaves | Disturbed a concealed Subdweller 4558 | -10/Subcaves | Core integrity fell below 50% 4823 | -10/Subcaves | Discovered new exit (range 13) 5585 | -10/Subcaves | Disturbed a concealed Subdweller 5966 | -10/Subcaves | Build established: Derelict-Mutant 6083 | -10/Subcaves | Core integrity fell below 20% 6316 | -10/Subcaves | Build established: Hauler-Mutant 6739 | -10/Subcaves | Entered Recycling 7431 | -8/Recycling | Scanned before Scraplab entrance 7486 | -8/Recycling | Entered Scraplab 7518 | -8/Recycling | Discovered new exit (range 2) 7520 | -8/Recycling | Entered Scraptown 7750 | -8/Scraptown | Visited UFD Registry 7750 | -8/Scraptown | Registered with UFD as "Steeltalker" 7788 | -8/Scraptown | Visited IN-MT5's Study 7881 | -8/Scraptown | Visited Cyclists 7896 | -8/Scraptown | Entered Cyclist Reading Room 7904 | -8/Scraptown | Learned location of Zion (-6) 7976 | -8/Scraptown | Scanned Subdweller tech in exchange for log data 7980 | -8/Scraptown | Learned location of Quarantine (-2) 7982 | -8/Scraptown | Learned Research security intel 7984 | -8/Scraptown | Learned Factory interactive machine intel 8073 | -8/Scraptown | Discovered new exit (range 11) 8609 | -8/Scraptown | Visited The Evicted 8653 | -8/Scraptown | Visited SPCMW 8710 | -8/Scraptown | Visited Science Testing Area 8731 | -8/Scraptown | Visited Assassins FH 8810 | -8/Scraptown | Visited Botcube Research 8848 | -8/Scraptown | Visited Derelict Rescue Squad 8860 | -8/Scraptown | Found DRS Beacon 8895 | -8/Scraptown | Visited Scrap Suit Storage 8977 | -8/Scraptown | Delivered Scrap Shield to a Scientist 9198 | -8/Scraptown | Visited LU-1G1's Boring Crew 9274 | -8/Scraptown | Visited Infowarlord's Domain 9333 | -8/Scraptown | Visited Cartography Club 9677 | -8/Scraptown | Discovered new exit (range 3) 9819 | -8/Scraptown | Visited Junk Repository 9879 | -8/Scraptown | Visited Curators Association 9913 | -8/Scraptown | Visited Junk Repository 10639 | -8/Scraptown | Met Optimus 10639 | -8/Scraptown | Accepted into 0bPrime 10746 | -8/Scraptown | Entered Factory 10746 | -6/Factory | Evolved 8 slots: Propulsion x3, Utility x5 10747 | -6/Factory | Loaded intel: 56 interactive machine locations 10748 | -6/Factory | Loaded intel: 6 fabricator locations 10786 | -6/Factory | Loaded intel: 8 recycling unit locations 10921 | -6/Factory | Identified exit to Lower Caves 10921 | -6/Factory | Identified exit to Extension 11001 | -6/Factory | Fabricated Cld. VTOL Module? 11028 | -6/Factory | Learned location of Protoforge (-2) 11080 | -6/Factory | Discovered new exit (range 4) 11080 | -6/Factory | Identified exit to Factory 11165 | -6/Factory | Fabricated Cld. VTOL Module? 11184 | -6/Factory | Repaired Imp. Propulsion Shielding? 11325 | -6/Factory | Build established: Hacker-Sprinter 11366 | -6/Factory | Fabricated Biomechanical Wings? 11373 | -6/Factory | Fabricated Biomechanical Wings? 11409 | -6/Factory | Fabricated Biomechanical Wings? 11446 | -6/Factory | Search patrols dispatched 11578 | -6/Factory | Repaired Field Propulsion Drive+ 11585 | -6/Factory | Discovered exit to Factory (range 13) 11634 | -6/Factory | Repaired Xenon Bombardment Thruster+? 11715 | -6/Factory | Fabricated Biomechanical Wings? 11729 | -6/Factory | Fabricated Cld. VTOL Module (x1) 11970 | -6/Factory | Repaired Multitool 12045 | -6/Factory | Repaired Cld. VTOL Module 12123 | -6/Factory | Manually triggered Chute Trap 12123 | -6/Factory | Sucked down chute 12123 | -6/Factory | Entered Waste 12129 | -6/Waste | Spotted C-40 Crusher 12129 | -6/Waste | Spotted C-40 Crusher 12133 | -6/Waste | Spotted C-40 Crusher 12135 | -6/Waste | Spotted C-40 Crusher 12136 | -6/Waste | Discovered new exit (range 16) 12136 | -6/Waste | Spotted C-40 Crusher 12138 | -6/Waste | EMP discharged 12138 | -6/Waste | Identified exit to Factory 12139 | -6/Waste | Entered Factory 12252 | -6/Factory | Loaded intel: 8 recycling unit locations 12280 | -6/Factory | Fabricated E-15 Imp (x2) 12472 | -6/Factory | Discovered exit to Factory (range 6) 12673 | -6/Factory | Discovered exit to Lower Caves (range 5) 12706 | -6/Factory | Discovered exit to Factory (range 16) 12736 | -6/Factory | Repaired Adv. Cryofiber Web? 12758 | -6/Factory | Watched by a mysterious "MATRIX" hacker. 12788 | -6/Factory | Repaired Multitool 12860 | -6/Factory | Repaired Cld. VTOL Module 12900 | -6/Factory | Repaired Imp. Light Armor Plating 13071 | -6/Factory | Fabricated Stasis Canceller (x2) 13217 | -6/Factory | Fabricated Exp. Propulsion Shielding (x1) 13320 | -6/Factory | Discovered exit to Factory (range 12) 13361 | -6/Factory | Spotted B-75 Beast 14091 | -6/Factory | Entered Extension 14112 | -6/Extension | Rescued a captive Derelict 14115 | -6/Extension | Rescued a captive Derelict 14168 | -6/Extension | Rescued a captive Derelict 14539 | -6/Extension | Core integrity fell below 50% 14546 | -6/Extension | Spotted B-75 Beast 14574 | -6/Extension | Allies destroyed B-75 Beast 14590 | -6/Extension | Build established: Commander-Sprinter 14592 | -6/Extension | Spotted B-75 Beast 14616 | -6/Extension | Disrupted transfer network 14675 | -6/Extension | Lost 6 allies 14691 | -6/Extension | Lost 4 parts (1p2u1w) 14810 | -6/Extension | Rescued a captive Derelict 14830 | -6/Extension | Rescued A7 14914 | -6/Extension | Loaded intel: 2 recycling unit locations 14945 | -6/Extension | Rescued a captive Derelict 14977 | -6/Extension | Build established: Machinist-Sprinter 15050 | -6/Extension | Disrupted transfer network 15064 | -6/Extension | Discovered exit to Factory (range 10) 15064 | -6/Extension | Discovered new exit (range 6) 15088 | -6/Extension | Identified exit to Cetus 15124 | -6/Extension | Entered Cetus 15124 | -6/Cetus | Accompanied by 1 ally (A7) 15129 | -6/Cetus | Acquired a Cetus Manufacturing Module code from A7 15141 | -6/Cetus | Spotted Cetus Guard 15141 | -6/Cetus | Spotted Cetus Guard 15169 | -6/Cetus | Spotted Cetus Guard 15171 | -6/Cetus | Extracted ID and sensor layout for unrecognized location from A7's data core 15172 | -6/Cetus | Found Prototype Protection 15174 | -6/Cetus | Core integrity fell below 20% 15183 | -6/Cetus | Started Cetus Manufacturing Module 15186 | -6/Cetus | Discovered new exit (range 16) 15190 | -6/Cetus | Identified Med. Regenerative Plating 15208 | -6/Cetus | Manufactured an Enhanced Grunt 15210 | -6/Cetus | Cetus Manufacturing Module disabled 15308 | -6/Cetus | Identified exit to Archives 15354 | -6/Cetus | Build established: Machinist-Mutant 15362 | -6/Cetus | Entered Archives 15362 | -6/Archives | Accompanied by 1 ally 15425 | -6/Archives | Discovered new exit (range 13) 15427 | -6/Archives | Identified exit to Hub_04(d) 15428 | -6/Archives | Entered Hub_04(d) 15739 | -6/Hub_04(d) | Network Hub disabled 15753 | -6/Hub_04(d) | Network Hub disabled 15769 | -6/Hub_04(d) | Spotted Lightning 15772 | -6/Hub_04(d) | Spotted Lightning 15773 | -6/Hub_04(d) | Spotted Lightning 15774 | -6/Hub_04(d) | Discovered exit to Factory (range 12) 15774 | -6/Hub_04(d) | Spotted Lightning 15778 | -6/Hub_04(d) | Entered Factory 15778 | -5/Factory | Evolved 2 slots: Propulsion x1, Utility x1 15808 | -5/Factory | Lost 3 parts (1p1n1u) 16187 | -5/Factory | Discovered new exit (range 12) 16192 | -5/Factory | Identified exit to Upper Caves 16197 | -5/Factory | Loaded intel: 8 recycling unit locations 16244 | -5/Factory | Discovered new exit (range 4) 16245 | -5/Factory | Identified exit to Factory 16251 | -5/Factory | Build established: Hacker-Sprinter 16295 | -5/Factory | Targeted by mysterious "MATRIX" hacker. 16621 | -5/Factory | Repaired Cld. VTOL Module? 16895 | -5/Factory | Repaired Mic. Antimatter Reactor 16939 | -5/Factory | Fabricated Exp. Propulsion Shielding (x1) 16963 | -5/Factory | Fabricated Lgt. Quantum Reactor (x2) 17322 | -5/Factory | Central database locked down 17503 | -5/Factory | Manually triggered Chute Trap 17503 | -5/Factory | Sucked down chute 17503 | -5/Factory | Entered Waste 17507 | -5/Waste | Found Prototype Device 17507 | -5/Waste | Identified Imp. Particle Accelerator 17512 | -5/Waste | Spotted C-40 Crusher 17513 | -5/Waste | Spotted C-40 Crusher 17515 | -5/Waste | Spotted C-40 Crusher 17515 | -5/Waste | Spotted C-40 Crusher 17515 | -5/Waste | Spotted C-40 Crusher 17516 | -5/Waste | Discovered new exit (range 10) 17517 | -5/Waste | Entered Factory 17587 | -5/Factory | Discovered exit to Factory (range 15) 17646 | -5/Factory | Lost 4 parts (1p1n1u1w) 17688 | -5/Factory | Discovered exit to Factory (range 5) 17689 | -5/Factory | Found Imp. Powered Armor 17708 | -5/Factory | Discovered exit to Factory (range 11) 17716 | -5/Factory | Allied Derelicts emerged from ambush trap array 17718 | -5/Factory | Loaded intel: 8 recycling unit locations 17817 | -5/Factory | Search patrols dispatched 17909 | -5/Factory | Fabricated Adv. Power Amplifier (x2) 18016 | -5/Factory | Repaired Exp. Propulsion Shielding 18028 | -5/Factory | Fabricated Biomechanical Wings (x1) 18041 | -5/Factory | Entered Upper Caves 18043 | -5/Upper Caves | UFD Scientist delivered a prototype 18053 | -5/Upper Caves | Found Prototype Protection 18053 | -5/Upper Caves | Identified Enh. Scrap Shield 18113 | -5/Upper Caves | Found Alien Artifact 18238 | -5/Upper Caves | Learned location of 2 exits from Factory 18252 | -5/Upper Caves | Discovered new exit (range 13) 18263 | -5/Upper Caves | Identified Core Expander 18263 | -5/Upper Caves | Installed Core Expander, added new Power slot 18402 | -5/Upper Caves | Entered another Upper Caves area 18421 | -5/Upper Caves | Learned Factory emergency access door positions 18524 | -5/Upper Caves | Discovered new exit (range 7) 18564 | -5/Upper Caves | Entered Warlord 18578 | -5/Warlord | Discovered new exit (range 15) 18594 | -5/Warlord | System corruption cleaned by Quarantine Array 18633 | -5/Warlord | Found Prototype Device 18633 | -5/Warlord | Identified Minesniffer Drone Bay 18658 | -5/Warlord | Learned 4 Testing zone layouts 18658 | -5/Warlord | Learned 4 Quarantine zone layouts 18659 | -5/Warlord | Learned Armory recycling unit intel 18659 | -5/Warlord | Learned Research repair station intel 18659 | -5/Warlord | Learned Research recycling unit intel 18659 | -5/Warlord | Learned Research stockpile data 18689 | -5/Warlord | Warlord's base attacked by MAIN.C 18713 | -5/Warlord | Found Prototype Device 18713 | -5/Warlord | Identified System Purifier 18717 | -5/Warlord | Found Prototype Reactor 18717 | -5/Warlord | Identified Vortex Chain Reactor 18763 | -5/Warlord | Found Prototype Energy Gun 18763 | -5/Warlord | Identified Vortex Rail 18800 | -5/Warlord | Rebuked by Warlord 18827 | -5/Warlord | Opened side exit 18909 | -5/Warlord | Warlord forces counterattacked 19041 | -5/Warlord | Lost 8 allies 19043 | -5/Warlord | Spotted Striker 19119 | -5/Warlord | Spotted Executioner 19145 | -5/Warlord | Lost 22 allies 19240 | -5/Warlord | Lost 4 allies 19270 | -5/Warlord | Spotted Striker 19364 | -5/Warlord | Warlord base infiltrated, sounded retreat 19430 | -5/Warlord | Found Prototype Device 19430 | -5/Warlord | Identified Exp. Shock Absorption System 19439 | -5/Warlord | Found Prototype Device 19439 | -5/Warlord | Identified Adv. Kinecellerator 19445 | -5/Warlord | Lost 9 allies 19448 | -5/Warlord | Found Prototype Launcher 19448 | -5/Warlord | Identified Chain Missile Launcher 19476 | -5/Warlord | Spotted Executioner 19488 | -5/Warlord | Entered Proximity Caves 19510 | -4/Proximity Caves | Lost 3 allies 19587 | -4/Proximity Caves | Discovered exit to Factory (range 7) 19600 | -4/Proximity Caves | Entered Factory 19600 | -4/Factory | Evolved 2 slots: Propulsion x1, Utility x1 19601 | -4/Factory | Identified exit to Upper Caves 19601 | -4/Factory | Identified exit to Research 19760 | -4/Factory | Loaded intel: 8 recycling unit locations 19822 | -4/Factory | Spotted B-86 Titan 19892 | -4/Factory | Spotted B-86 Titan 19915 | -4/Factory | Fabricated Adv. Phase Shifter (x2) 19995 | -4/Factory | Scraphulk reinforcements arrived? 20009 | -4/Factory | Entered Upper Caves 20343 | -4/Upper Caves | Discovered new exit (range 9) 20344 | -4/Upper Caves | Encountered a Warlord checkpoint 20345 | -4/Upper Caves | Identified exit to Upper Caves 20346 | -4/Upper Caves | Learned Research stockpile data 20535 | -4/Upper Caves | Entered another Upper Caves area 20536 | -4/Upper Caves | Discovered exit to Research (range 16) 20568 | -4/Upper Caves | Encountered a Warlord checkpoint 20694 | -4/Upper Caves | Acquired the password to a Derelict Tinkerer's latest research 20706 | -4/Upper Caves | Discovered new exit (range 13) 20709 | -4/Upper Caves | Identified exit to Zhirov 20709 | -4/Upper Caves | Entered Zhirov 20709 | -4/Zhirov | Discovered new exit (range 3) 20713 | -4/Zhirov | Met Zhirov 20718 | -4/Zhirov | Learned location of Testing (-3) 20718 | -4/Zhirov | Learned location of Command (-1) 20721 | -4/Zhirov | Zhirov requested help retrieving the SGEMP Prototype 20729 | -4/Zhirov | Found Alien Artifact 20729 | -4/Zhirov | Identified Integrated Reactor 20729 | -4/Zhirov | Installed Integrated Reactor, increased core energy generation (+10) 21042 | -4/Zhirov | Build established: Hacker-Mutant 22348 | -4/Zhirov | Found Alien Artifact 22364 | -4/Zhirov | Identified exit to Proximity Caves 22365 | -4/Zhirov | Entered Proximity Caves 22481 | -3/Proximity Caves | Spotted B-86 Titan 22881 | -3/Proximity Caves | Build established: Hacker-Sprinter 23023 | -3/Proximity Caves | Discovered exit to Research (range 14) 23075 | -3/Proximity Caves | Entered Research 23075 | -3/Research | Evolved 2 slots: Utility x2 23076 | -3/Research | Identified exit to Testing 23079 | -3/Research | Loaded intel: 116 machine locations 23080 | -3/Research | Loaded intel: 4 repair station locations 23081 | -3/Research | Loaded intel: 5 recycling unit locations 23173 | -3/Research | Repaired Exp. Propulsion Shielding 23217 | -3/Research | Identified exit to Armory 23385 | -3/Research | Loaded intel: 5 recycling unit locations 23457 | -3/Research | Spotted B-86 Titan 23508 | -3/Research | Found Prototype Protection 23508 | -3/Research | Identified Centrium Heavy Armor Plating 23653 | -3/Research | Discovered new exit (range 4) 23653 | -3/Research | Identified exit to Research 23901 | -3/Research | Discovered exit to Research (range 15) 23946 | -3/Research | Discovered exit to Research (range 5) 24083 | -3/Research | Repaired Exp. Propulsion Shielding 24088 | -3/Research | Entered another Research area 24088 | -2/Research | Evolved 2 slots: Utility x2 24110 | -2/Research | Loaded intel: 5 recycling unit locations 24267 | -2/Research | Spotted B-90 Cyclops 24273 | -2/Research | Identified exit to Quarantine 24383 | -2/Research | Discovered new exit (range 6) 24383 | -2/Research | Identified exit to Access 24405 | -2/Research | Entered Quarantine 24410 | -2/Quarantine | Found Alien Slashing Weapon 24410 | -2/Quarantine | Identified Sigix Broadsword 24433 | -2/Quarantine | Found Alien Artifact 24433 | -2/Quarantine | Identified Phase Armor 24454 | -2/Quarantine | Found Alien Artifact 24455 | -2/Quarantine | Identified Subatomic Replicator 24455 | -2/Quarantine | Used Subatomic Replicator to create Alien Artifact 24469 | -2/Quarantine | Found Alien Artifact 24469 | -2/Quarantine | Identified Phase Redirector 24483 | -2/Quarantine | Identified Supercharged TR 24499 | -2/Quarantine | Found Alien Artifact 24499 | -2/Quarantine | Identified Transdimensional Reconstructor 24499 | -2/Quarantine | Warped through subspace 24511 | -2/Quarantine | Found Alien Artifact 24511 | -2/Quarantine | Identified Hpw. Transdimensional Reconstructor 24511 | -2/Quarantine | Warped through subspace 24529 | -2/Quarantine | Found Alien Artifact 24529 | -2/Quarantine | Identified Dimensional Node Initializer 24529 | -2/Quarantine | Initialized slip node 24534 | -2/Quarantine | Found Dimensional Node Initializer 24596 | -2/Quarantine | Discovered exit to Access (range 14) 24610 | -2/Quarantine | Spotted Fortress 24623 | -2/Quarantine | Discovered new exit (range 5) 24623 | -2/Quarantine | Discovered new exit (range 6) 24623 | -2/Quarantine | Identified exit to Protoforge 24631 | -2/Quarantine | Entered Protoforge 24756 | -2/Protoforge | Discovered exit to Access (range 13) 24779 | -2/Protoforge | Superfortress began startup sequence 24789 | -2/Protoforge | Spotted Overlord 24828 | -2/Protoforge | Spotted Hotshot 24828 | -2/Protoforge | Spotted Hotshot 24847 | -2/Protoforge | Spotted Hotshot 24847 | -2/Protoforge | Spotted Hotshot 24851 | -2/Protoforge | Spotted AP7-3 24859 | -2/Protoforge | Spotted AP7-3 24862 | -2/Protoforge | Spotted SKR-2 24862 | -2/Protoforge | Spotted SKR-2 24862 | -2/Protoforge | Spotted SKR-2 24866 | -2/Protoforge | Spotted EXE-6 24866 | -2/Protoforge | Spotted EXE-6 24881 | -2/Protoforge | Search patrols dispatched 24902 | -2/Protoforge | Spotted Decapitator 24902 | -2/Protoforge | Spotted Decapitator 24902 | -2/Protoforge | Spotted Decapitator 24902 | -2/Protoforge | Spotted Decapitator 24905 | -2/Protoforge | Spotted Immortal 24905 | -2/Protoforge | Spotted Immortal 24905 | -2/Protoforge | Spotted V926-q 24905 | -2/Protoforge | Spotted V157-w 24907 | -2/Protoforge | Spotted V691-x 24912 | -2/Protoforge | Found Prototype Protection 24912 | -2/Protoforge | Identified Cep. Core Shell 24914 | -2/Protoforge | Found Prototype Device 24914 | -2/Protoforge | Identified Exp. Force Field 24932 | -2/Protoforge | Spotted AP7-3 24932 | -2/Protoforge | Spotted AP7-3 24946 | -2/Protoforge | Additional patrols dispatched to research labs 24949 | -2/Protoforge | Found Prototype Device 24949 | -2/Protoforge | Identified Cep. Navigation Harness 24954 | -2/Protoforge | Found Alien Artifact 24955 | -2/Protoforge | Identified Cep. Nanofilaments [Polyglass] 24955 | -2/Protoforge | Installed Cep. Nanofilaments [Polyglass], 3 resistances modified: KI -10%, TH +20%, EX -50% 24973 | -2/Protoforge | Spotted V047-k 24974 | -2/Protoforge | Found Prototype Protection 24974 | -2/Protoforge | Identified Cep. RG22 Armor 24975 | -2/Protoforge | Found Cep. RG22 Armor 24977 | -2/Protoforge | Found Prototype Processor 24977 | -2/Protoforge | Identified Cep. Projectile Intercept Suite 24980 | -2/Protoforge | Found Prototype Device 24980 | -2/Protoforge | Identified Exp. Remote Shield 24982 | -2/Protoforge | Found Cep. Core Shell 24984 | -2/Protoforge | Found Cep. Core Shell 24986 | -2/Protoforge | Found Prototype Device 24986 | -2/Protoforge | Identified Cep. Hardlight Director 24988 | -2/Protoforge | Found Cep. Core Shell 25036 | -2/Protoforge | Core integrity fell below 50% 25036 | -2/Protoforge | Warped through subspace 25038 | -2/Protoforge | Spotted Decapitator 25038 | -2/Protoforge | Spotted Decapitator 25038 | -2/Protoforge | Spotted V240-i 25038 | -2/Protoforge | Spotted V607-z 25039 | -2/Protoforge | Spotted Decapitator 25048 | -2/Protoforge | Scanned by Researcher 25049 | -2/Protoforge | Core integrity fell below 20% 25059 | -2/Protoforge | Destroyed by Decapitator with Experimental Terror Saw Last Messages --------------- 25033_ Adv. System Shield destroyed. 25036_ Warped through subspace. 25037_ Slammed into Decapitator. 25038_ V240-i springs to life. 25039_ V607-z springs to life. 25043_ V240-i martial strike. 25047_ Slammed into Decapitator. 25048_ C-65 Expert calls for reinforcements. 25048_ ALERT: Hostile activity reported, dispatching reinforcements to area. 25048_ Held in stasis. 25048_ C-65 Expert is analyzing... 25048_ ALERT: Encountered unknown unique technology, formulating response. 25054_ Decapitator springs to life. 25056_ Triggered Stasis Trap. 25056_ A bubble of rippling energy engulfs the area. 25056_ Field strength at 94. 25057_ Field strength at 88. 25058_ Held in stasis. 25058_ Field strength at 82. Map ----- +----------------------------------------------------+ | ??????????????????????""""""""??????????# #????? | | ?????????????????????? ! ! ! !?????????# #????? | | ??????????????????????!! ! !!!?????????# #????? | | ?????????????????""?###""""""""?????????# #????? | | ????????????????#" !# "????????# #????? | | ????????????????#"! # ""#???????# #????? | | ????????????????#"! " """"#???????# #????? | | ????????????????#"!!" """"#???????# #????? | | ????????????????#"!!" ""#???????# #????? | | ????????????????#"!!" "#???????# ###### | | ????????????????#"!!" "#???????# | | ????????????????#" !" #????????# | | ?????????????????##"" "?????????# ###### | | ?????????????????# ""#???????# #????? | | ?????????????????# #???????# #????? | | ?????????????????###/+### ####+##??????# #????? | | ?????????????????#" # #?? "#??????# #????? | | ?????????????????#" # #"" "#??????# #????? | | ?????????????????#" "V " ##???????# #????? | | ?????????????????#" "cc" #???????# #????? | | ?????????????????#" "cc" #???????# #????? | | ?????????????????#" "cc" ##???????# #????? | | ?????????????????#" " ""# # " "#??????# #????? | | ?????????????????#"""#??# #"""""#??????# #????? | | ?????????????????####???#cc#######??????# #????? | | ????????????????????????#@ #????????????# #????? | | ????????????????????????# #????????????# #????? | | ????????????????????????# #????????????# #????? | | ????????????????????????# #????????????# #????? | | ????????????????????????# #????????????# #????? | | ????????????????????????# #????????????# ###### | | ????????????????????????# #????????????# | | ????????????????????????# #????????????# | | ???????????????????????? #????????????# ###### | | ???????????????????????? Y????????????# #????? | | ???????????????????????? Y????????????# #????? | | ????????????????????????####????????????# #????? | | ????????????????????????????????????????# #????? | | ????????????????????????????????????????# #????? | | ????????????????????????????????????????# #????? | | ????????????????????????????????????????# #????? | | ????????????????????????????????????????# #????? | | ????????????????????????????????????????# #????? | | ?????????????????????? ################# #????? | | ?????????????????????? #????? | | ????????????????????? #????? | | ????????????????????? #????? | | ?????????????????????????### ########????? | | ???????????????????????????# #???????????? | | ???????????????????????????# #???????????? | +----------------------------------------------------+ Best States ------------- Heat Dissipation 75 Energy Generation 52 Energy Capacity 850 Matter Stores 300 Matter Capacity 300 Sight Range 22 Robot Scan Range 16 Terrain Scan Density 10 ECM Strength 1 Jamming Range 12 Power Amplification 30 Additional Mass Support 16 Base Temperature (-) 200 Armor Coverage 800 Resistance: TH 20 Core Shielding 90 Propulsion Shielding 90 Phase Shifting 15 Evasion (%) 94 Recoil Reduction 2 Energy Filtering 50 Kinecelleration 50 Offensive Hacking 26 Defensive Hacking 28 Authchip Count 2 Item Schematics ----------------- Cld. VTOL Module | -6/Factory | Hacked Biomechanical Wings | -6/Factory | Scanalyzed Stasis Canceller | -6/Factory | Hacked Exp. Propulsion Shielding | -6/Factory | Hacked Adv. Power Amplifier | -6/Factory | Hacked Jamming Amplifier | -5/Factory | Hacked Assault Drone Bay | -4/Zhirov | Free Exp. Heat Sink | -4/Zhirov | Free Exp. Optical Array | -4/Zhirov | Free Imp. Arc Thrower | -4/Zhirov | Free Robot Schematics ------------------ None Fabricated ------------ Cld. VTOL Module | x1 | -6/Factory | Authchip Cld. VTOL Module | x1 | -6/Factory Biomechanical Wings | x1 | -6/Factory Biomechanical Wings | x1 | -6/Factory Biomechanical Wings | x1 | -6/Factory Biomechanical Wings | x1 | -6/Factory Cld. VTOL Module | x1 | -6/Factory E-15 Imp | x2 | -6/Factory | Preloaded Stasis Canceller | x2 | -6/Factory Exp. Propulsion Shielding | x1 | -6/Factory Exp. Propulsion Shielding | x1 | -5/Factory Lgt. Quantum Reactor | x2 | -5/Factory | Preloaded Adv. Power Amplifier | x2 | -5/Factory Biomechanical Wings | x1 | -5/Factory Adv. Phase Shifter | x2 | -4/Factory | Preloaded Repaired ---------- Lgt. Treads | 73% | -10/Materials Imp. Propulsion Shielding | 6% | -6/Factory Field Propulsion Drive | 33% | -6/Factory Xenon Bombardment Thruster | 70% | -6/Factory Multitool | 30% | -6/Factory Cld. VTOL Module | 71% | -6/Factory Adv. Cryofiber Web | 8% | -6/Factory Multitool | 53% | -6/Factory Cld. VTOL Module | 65% | -6/Factory Imp. Light Armor Plating | 64% | -6/Factory Cld. VTOL Module | 26% | -5/Factory Mic. Antimatter Reactor | 28% | -5/Factory Exp. Propulsion Shielding | 24% | -5/Factory Exp. Propulsion Shielding | 57% | -3/Research Exp. Propulsion Shielding | 60% | -3/Research Studied --------- Xenon Bombardment Thruster | -6/Factory | Hacked Nuclear Pulse Thruster | -6/Factory | Hacked Field Propulsion Drive | -6/Factory | Hacked Lgt. Fission Core | -5/Factory | Hacked Lrn. Missile Launcher | -5/Factory | Hacked Imp. Surge Thruster | -5/Factory | Hacked Alien Tech Used ----------------- Core Expander Integrated Reactor Sigix Broadsword Phase Armor Subatomic Replicator Phase Redirector Transdimensional Reconstructor High-powered Transdimensional Reconstructor Dimensional Node Initializer Concept Nanofilaments [Polyglass] Supercharged TR Achievements -------------- Deductive Reasoning Loot Taster Official Business Plot Armor Professional Mechanic Tune-up Challenges ------------ None Game ------ Seed RestorationSeismicCompactor Manual? 0 Play Time 10:03:31 Cumulative 481.8 hours Start 2026.02.21 @ 04:44:13 End 2026.02.22 @ 01:45:24 Sessions 3 Manual Loads 0 Difficulty Rogue Special Mode None Game No. 224 Rogue 224 Adventurer 0 Explorer 0 Win Type - Total 15 Types 8/0/5/2/0/0/0/0/0/0 Lore% 76 Gallery% 73 Achievement% 56 Wizard Run 0 Options --------- Layout 0 ASCII 0 Keyboard 0 Movement Numpad Keybinds 0 Fullscreen 1 Font 18/SmallcapsGlow Map View 76x50 Zoom Use 0% Tactical HUD 1 Map Filters NONE Filters NONE Steam 1 RUN: 934da319-f513-43dc-b68a-d74b8c8d03e4